Workbook

Sheet Συντελεστές
H1: d | I1: =1/(k-1) -> 0.3333333333
H2: k | I2: 4
H3: π | I3: 3.1415927
B6: Αρμονική | C6: An | D6: Φάσμα | F6: x/L | G6: f1 | H6: f2 | I6: f3 | J6: f4 | K6: f5 | L6: f6 | M6: f7 | N6: f8 | O6: f9 | P6: f10 | Q6: f11 | R6: f12 | S6: f13 | T6: f14 | U6: Sum
B7: 1 | C7: =2*k*k*d/(B7*B7*π*π)*SIN(B7*π/k) -> 0.7642122106 | D7: =ABS(C7) -> 0.7642122106 | F7: 0 | G7: =β01*SIN(1*π*F7) -> 0 | H7: =β02*SIN(2*π*F7) -> 0 | I7: =β03*SIN(3*π*F7) -> 0 | J7: =β04*SIN(4*π*F7) -> 0 | K7: =β05*SIN(5*π*F7) -> 0 | L7: =β06*SIN(6*π*F7) -> 0 | M7: =β07*SIN(7*π*F7) -> 0 | N7: =β08*SIN(8*π*F7) -> 0 | O7: =β09*SIN(9*π*F7) -> 0 | P7: =β10*SIN(10*π*F7) -> 0 | Q7: =β11*SIN(11*π*F7) -> 0 | R7: =β12*SIN(12*π*F7) -> 0 | S7: =β13*SIN(13*π*F7) -> 0 | T7: =β14*SIN(14*π*F7) -> 0 | U7: =SUM(G7:T7) -> 0
B8: 2 | C8: 0.2701898151 | D8: =ABS(C8) -> 0.2701898151 | F8: 0.005 | G8: 0.01200372386 | H8: 0.008486867312 | I8: 0.003999924855 | J8: -1.968414556e-10 | K8: -0.002398376106 | L8: -0.002825234238 | M8: -0.00171143457 | N8: 1.96453034e-10 | O8: 0.001329363624 | P8: 0.001690679992 | Q8: 0.00108587026 | R8: -1.958066858e-10 | S8: -0.0009169973438 | T8: -0.001202858835 | U8: =SUM(G8:T8) -> 0.01954152862
B9: 3 | C9: 0.08491246391 | D9: 0.08491246391 | F9: 0.01 | G9: 0.02400448599 | H9: =β02*SIN(2*π*F9) -> 0.01696535911 | I9: 0.007990968876 | J9: -3.929060679e-10 | K9: -0.004781965426 | L9: -0.005625391497 | M9: -0.003402198279 | N9: 3.898078861e-10 | O9: 0.002632202873 | P9: 0.00333972983 | Q9: 0.002139401839 | R9: -3.84676822e-10 | S9: -0.001795889432 | T9: -0.002347780197 | U9: 0.0391189233
B10: 4 | C10: =2*k*k*d/(B10*B10*π*π)*SIN(B10*π/k) -> -3.134891289e-09 | D10: 3.134891289e-09 | F10: 0.015 | G10: 0.03599932536 | H10: 0.02542710815 | I10: 0.01196427095 | J10: -5.874200594e-10 | K10: -0.007136072338 | L10: -0.008375617381 | M10: -0.005051869934 | N10: 5.770152349e-10 | O10: 0.003882522608 | P10: 0.004906544434 | Q10: 0.003129219146 | R10: -5.599195896e-10 | S10: -0.002600154447 | T10: -0.003379617256 | U10: 0.05876565872
B11: 5 | C11: -0.03056848984 | D11: 0.03056848984 | F11: 0.02 | G11: 0.04798528244 | H11: 0.0338637637 | I11: 0.01591100934 | J11: -7.796157722e-10 | K11: -0.009446182989 | L11: -0.01105150069 | M11: -0.006640524652 | N11: 7.551227084e-10 | O11: 0.005055375591 | P11: 0.006352543626 | Q11: 0.004025844087 | R11: -7.15326926e-10 | S11: -0.003296371657 | T11: -0.004248670057 | U11: 0.078510568
B12: 6 | C12: -0.03002109056 | D12: 0.03002109056 | F12: 0.025 | G12: 0.05995939987 | H12: 0.0422669998 | I12: 0.01982242132 | J12: -9.687346977e-10 | K12: -0.01169805478 | L12: -0.01362929009 | M12: -0.008148974519 | N12: 9.213214454e-10 | O12: 0.006127360257 | P12: 0.007642122106 | Q12: 0.004802573962 | R12: -8.453934486e-10 | S12: -0.003855610187 | T12: -0.004913079387 | U12: 0.09837586746
B13: 7 | C13: -0.01559616612 | D13: 0.01559616612 | F13: 0.03 | G13: 0.07191872322 | H13: 0.05062852347 | I13: =β03*SIN(3*π*F13) -> 0.02368982256 | J13: -1.15403047e-09 | K13: -0.01387780417 | L13: -0.01608610495 | M13: -0.009559000343 | N13: 1.072990392e-09 | O13: 0.007077087633 | P13: 0.008743526172 | Q13: 0.005436276707 | R13: -9.45511486e-10 | S13: -0.004254631226 | T13: -0.00534084299 | U13: 0.1183755751
B14: 8 | C14: 1.567445645e-09 | D14: 1.567445645e-09 | F14: 0.035 | G14: 0.08386030169 | H14: 0.05894008291 | I14: 0.02750462647 | J14: -1.334771811e-09 | K14: -0.01597199228 | L14: -0.0184001384 | M14: -0.01085357171 | N14: 1.207737639e-09 | O14: 0.007885608107 | P14: 0.009629635599 | Q14: 0.005908079802 | R14: -1.012134307e-09 | S14: -0.004476853702 | T14: -0.005511356998 | U14: 0.1385144204
B15: 9 | C15: 0.009434719525 | D15: 0.009434719525 | F15: 0.04 | G15: 0.09578118889 | H15: 0.06719347559 | I15: 0.03125836323 | J15: -1.510245417e-09 | K15: -0.01796770774 | L15: -0.02055085091 | M15: -0.01201705266 | N15: 1.323438142e-09 | O15: 0.008536789526 | P15: 0.01027863143 | Q15: 0.006203932312 | R15: -1.042901764e-09 | S15: -0.004513043298 | T15: -0.005416408353 | U15: 0.1587873168
B16: 10 | C16: 0.0108075926 | D16: 0.0108075926 | F16: 0.045 | G16: 0.1076784435 | H16: 0.07538055643 | I16: 0.03494269861 | J16: -1.679758774e-09 | K16: -0.01985264631 | L16: -0.0225191526 | M16: -0.01303539057 | N16: 1.418267234e-09 | O16: 0.009017639071 | P16: 0.01067453324 | Q16: 0.006315023352 | R16: -1.036723905e-09 | S16: -0.004361696179 | T16: -0.005060570397 | U16: 0.1791794369
B17: 11 | C17: 0.006315802514 | D17: 0.006315802514 | F17: 0.05 | G17: 0.1195491301 | H17: 0.08349324575 | I17: 0.03854945245 | J17: -1.842642891e-09 | K17: -0.02161518671 | L17: -0.0242875727 | M17: -0.01389628588 | N17: 1.490729403e-09 | O17: 0.009318562503 | P17: 0.0108075926 | Q17: 0.00623804448 | R17: -9.938195839e-10 | S17: -0.004029101479 | T17: -0.00446098259 | U17: 0.1996668972
B18: 12 | C18: -1.04496376e-09 | D18: 1.04496376e-09 | F18: 0.055 | G18: 0.1313903197 | H18: 0.09152353732 | I18: 0.04207061687 | J18: -1.998254938e-09 | K18: -0.02324446229 | L18: -0.02584041458 | M18: -0.0145893406 | N18: 1.539681879e-09 | O18: 0.009433555591 | P18: 0.01067453316 | Q18: 0.005975288231 | R18: -9.157087076e-10 | S18: -0.003529079965 | T18: -0.003646524966 | U18: 0.2202180271
B19: 13 | C19: -0.004521966373 | D19: 0.004521966373 | F19: 0.06 | G19: 0.1431990907 | H19: 0.09946350621 | I19: 0.04549837399 | J19: -2.145980785e-09 | K19: -0.02473042803 | L19: -0.0271638951 | M19: -0.01510618395 | N19: 1.564352651e-09 | O19: 0.009360323914 | P19: 0.01027863128 | Q19: 0.00553457984 | R19: -8.051583928e-10 | S19: -0.002882409721 | T19: -0.002656427079 | U19: 0.2407951607
B20: 14 | C20: -0.005514077858 | D20: 0.005514077858 | F20: 0.065 | G20: 0.1549725295 | H20: 0.1073053166 | I20: 0.04882511334 | J20: -2.285237426e-09 | K20: -0.02606392245 | L20: -0.02824626696 | M20: -0.01544057347 | N20: 1.564352646e-09 | O20: 0.009100328642 | P20: 0.009629635372 | Q20: 0.004929044198 | R20: -6.660849397e-10 | S20: -0.002115962728 | T20: -0.001538378457 | U20: 0.2613568623
F21: 0.07 | G21: 0.1667077312 | H21: 0.1150412296 | I21: 0.05204344873 | J21: -2.415475279e-09 | K21: -0.02723672411 | L21: -0.02907792294 | M21: -0.01558847036 | N21: 1.539681865e-09 | O21: 0.008658757377 | P21: 0.008743525877 | Q21: 0.004176714972 | R21: -5.034150948e-10 | S21: -0.001261588216 | T21: -0.0003462315632 | U21: 0.2818604692
F22: 0.075 | G22: 0.1784018002 | H22: 0.1226636108 | I22: 0.05514623464 | J22: -2.536180354e-09 | K22: -0.02824160231 | L22: -0.02965148122 | M22: -0.01554808831 | N22: 1.490729381e-09 | O22: 0.008044420652 | P22: 0.007642121752 | Q22: 0.003299997543 | R22: -3.229115187e-10 | S22: -0.0003547891885 | T22: 0.0008625920854 | U22: 0.3022648153
F23: 0.08 | G23: 0.1900518512 | H23: 0.1301649379 | I23: 0.05812658211 | J23: -2.646876284e-09 | K23: -0.02907236163 | L23: -0.02996185084 | M23: -0.01531991506 | N23: 1.418267203e-09 | O23: 0.007269576135 | P23: 0.00635254322 | Q23: 0.002325001736 | R23: -1.309686408e-10 | S23: 0.0005667528841 | T23: 0.002029867712 | U23: 0.322532984
F24: 0.085 | G24: 0.2016550097 | H24: 0.1375378078 | I24: 0.06097787404 | J24: -2.747126202e-09 | K24: -0.02972388018 | L24: -0.03000627694 | M24: -0.0149067065 | N24: 1.323438103e-09 | O24: 0.006349684054 | P24: 0.004906543987 | Q24: 0.001280764241 | R24: 6.561386673e-11 | S24: 0.001464743892 | T24: 0.00309937176 | U24: 0.3426349346
F25: 0.09 | G25: 0.213208413 | H25: 0.1447749445 | I25: 0.06369377983 | J25: -2.836534467e-09 | K25: -0.03019214111 | L25: -0.0297843652 | M25: -0.01431345341 | N25: 1.207737593e-09 | O25: 0.005303098727 | P25: 0.003339729353 | Q25: 0.0001983838611 | R25: 2.598719702e-10 | S25: 0.002301868376 | T25: 0.004019589989 | U25: 0.3625498465
F26: 0.095 | G26: 0.2247092102 | H26: 0.1518692059 | I26: 0.0662682695 | J26: -2.914748227e-09 | K26: -0.03047425744 | L26: -0.02929808532 | M26: -0.01354732115 | N26: 1.072990339e-09 | O26: 0.00415070234 | P26: 0.001690679497 | Q26: -0.0008899046582 | R26: 4.449239793e-10 | S26: 0.003043340146 | T26: 0.004746198726 | U26: 0.3822680363
F27: 0.1 | G27: 0.2361545638 | H27: 0.1588135906 | I27: 0.06869562703 | J27: -2.981458806e-09 | K27: -0.03056848984 | L27: -0.02855175355 | M27: -0.01261756314 | N27: 9.213213865e-10 | O27: 0.002915488296 | P27: -5.01582611e-10 | Q27: -0.001951690617 | R27: 6.142143342e-10 | S27: 0.003658347804 | T27: 0.005244199789 | U27: 0.4017923182
F28: 0.105 | G28: 0.2475416497 | H28: 0.1656012456 | I28: 0.07097046309 | J28: -3.03640293e-09 | K28: -0.03047425733 | L28: -0.02755199438 | M28: -0.01153540906 | N28: 7.551226447e-10 | O28: 0.001622102432 | P28: -0.001690680487 | Q28: -0.002955352597 | R28: 7.617458394e-10 | S28: 0.004121335087 | T28: 0.005489606221 | U28: 0.4211387067
F29: 0.11 | G29: 0.2588676585 | H29: 0.172225472 | I29: 0.07308772696 | J29: -3.079363758e-09 | K29: -0.03019214089 | L29: -0.02630768176 | M29: -0.01031392929 | N29: 5.770151672e-10 | O29: 0.0002963512687 | P29: -0.003339730307 | Q29: -0.003871000191 | R29: 8.822921177e-10 | S29: 0.004413062846 | T29: 0.005470597658 | U29: 0.4403363852
F30: 0.115 | G30: 0.2701297956 | H30: 0.1786797328 | I30: 0.0750427178 | J30: -3.110171743e-09 | K30: -0.02972387985 | L30: -0.02482986028 | M30: -0.008967876952 | N30: 3.898078157e-10 | O30: -0.001035312898 | P30: -0.004906544881 | Q30: -0.004671364179 | R30: 9.71582757e-10 | S30: 0.004521408514 | T30: 0.005188089676 | U30: 0.4594269035
F31: 0.12 | G31: 0.2813252821 | H31: 0.1849576581 | I31: 0.07683109504 | J31: -3.128705302e-09 | K31: -0.0290723612 | L31: -0.0231316472 | M31: -0.007513509796 | N31: 1.964529618e-10 | O31: -0.002346319792 | P31: -0.006352544032 | Q31: -0.005332608642 | R31: 1.026454592e-09 | S31: 0.004441869855 | T31: 0.004655689689 | U31: 0.4784626023
F32: 0.125 | G32: 0.2924513559 | H32: 0.1910530527 | I32: 0.07844888802 | J32: -3.134891289e-09 | K32: -0.02824160177 | L32: -0.02122811598 | M32: -0.005968393796 | N32: -7.27454763e-17 | O32: -0.003610511306 | P32: -0.007642122461 | Q32: -0.005835040829 | R32: 1.04496376e-09 | S32: 0.004177752048 | T32: 0.003899041529 | U32: 0.4975043019
F33: 0.13 | G33: 0.3035052717 | H33: 0.1969599009 | I33: 0.07989250485 | J33: -3.128705292e-09 | K33: -0.02723672347 | L33: -0.01913616249 | M33: -0.004351191002 | N33: -1.964531061e-10 | O33: -0.004802663425 | P33: -0.008743526467 | Q33: -0.00616369763 | R33: 1.026454564e-09 | S33: 0.003740030345 | T33: 0.002954590273 | U33: 0.5166183312
F34: 0.135 | G34: 0.3144843021 | H34: 0.2026723734 | I34: 0.08115874034 | J34: -3.110171725e-09 | K34: -0.0260639217 | L34: -0.01687435506 | M34: -0.002681434134 | N34: -3.898079566e-10 | O34: -0.005898989513 | P34: -0.009629635827 | Q34: -0.006308791204 | R34: 9.715827034e-10 | S34: 0.003146894 | T34: 0.001867826811 | U34: 0.5358730067
F35: 0.14 | G35: 0.3253857381 | H35: 0.2081848328 | I35: 0.08224478312 | J35: -3.07936373e-09 | K35: -0.02473042719 | L35: -0.01446276965 | M35: -0.0009792906651 | N35: -5.770153025e-10 | O35: -0.00687761492 | P35: -0.01027863159 | Q35: -0.006266000468 | R35: 8.822920398e-10 | S35: 0.002422990426 | T35: 0.0006910967105 | U35: 0.5553347039
F36: 0.145 | G36: 0.3362068902 | H36: 0.2134918389 | I36: 0.08314822191 | J36: -3.036402894e-09 | K36: -0.02324446137 | L36: -0.01192281168 | M36: 0.0007346807643 | N36: -7.551227722e-10 | O36: -0.007719013442 | P36: -0.01067453332 | Q36: -0.006036599788 | R36: 7.617457398e-10 | S36: 0.001598400987 | T36: -0.000518921084 | U36: 0.575063689
F37: 0.15 | G37: 0.3469450881 | H37: 0.2185881543 | I37: 0.08386705085 | J37: -2.981458761e-09 | K37: -0.02161518571 | L37: -0.009277025981 | M37: 0.002439778654 | N37: -9.213215042e-10 | O37: -0.008406396919 | P37: -0.0108075926 | Q37: -0.005627421026 | R37: 6.142142165e-10 | S37: 0.0007073909863 | T37: -0.001703944278 | U37: 0.5951098931
F38: 0.155 | G38: 0.3575976826 | H38: 0.2234687496 | I38: 0.08439967396 | J38: -2.914748173e-09 | K38: -0.01985264523 | L38: -0.006548896741 | M38: 0.004115408678 | N38: -1.072990445e-09 | O38: -0.008926050205 | P38: -0.01067453308 | Q38: -0.005050650077 | R38: 4.449238477e-10 | S38: -0.0002130142085 | T38: -0.002806894478 | U38: 0.6155088273
F39: 0.16 | G39: 0.3681620452 | H39: 0.2281288082 | I39: 0.08474490867 | J39: -2.836534405e-09 | K39: -0.0179677066 | L39: -0.003762639028 | M39: 0.005741332429 | N39: -1.207737686e-09 | O39: -0.009267604822 | P39: -0.01027863112 | Q39: -0.004323463957 | R39: 2.598718293e-10 | S39: -0.00112456773 | T39: -0.003774646458 | U39: 0.636277831
F40: 0.165 | G40: 0.3786355694 | H40: 0.2325637312 | I40: 0.0849019885 | J40: -2.747126132e-09 | K40: -0.01597199107 | L40: -0.0009429838643 | M40: 0.007297911853 | N40: -1.323438181e-09 | O40: -0.009424245838 | P40: -0.009629635144 | Q40: -0.00346751925 | R40: 6.561372153e-11 | S40: -0.001989390536 | T40: -0.004560587014 | U40: 0.6574128442
F41: 0.17 | G41: 0.3890156708 | H41: 0.2367691419 | I41: 0.08487056467 | J41: -2.646876206e-09 | K41: -0.01387780291 | L41: 0.001885041292 | M41: 0.008766346444 | N41: -1.418267265e-09 | O41: -0.009392847843 | P41: -0.008743525583 | Q41: -0.002508307143 | R41: -1.309687851e-10 | S41: -0.002771545453 | T41: -0.005126860158 | U41: 0.6788858718
F42: 0.175 | G42: 0.3992997885 | H42: 0.24074089 | I42: 0.08465070696 | J42: -2.536180268e-09 | K42: -0.01169805347 | L42: 0.004696334687 | M42: 0.01012890032 | N42: -1.490729426e-09 | O42: -0.009174037313 | P42: -0.007642121397 | Q42: -0.001474394267 | R42: -3.229116571e-10 | S42: -0.003438530516 | T42: -0.005446190508 | U42: 0.7006432886
F43: 0.18 | G43: 0.4094853849 | H43: 0.2444750559 | I43: 0.0842429035 | J43: -2.415475186e-09 | K43: -0.00944618164 | L43: 0.007465943082 | M43: 0.01136911643 | N43: -1.539681892e-09 | O43: -0.008772180105 | P43: -0.006352542814 | Q43: -0.0003965719419 | R43: -5.034152223e-10 | S43: -0.003962629576 | T43: -0.005503197045 | U43: 0.7226050962
F44: 0.185 | G44: 0.4195699469 | H44: 0.2479679544 | I44: 0.08364805972 | J44: -2.285237326e-09 | K44: -0.007136070958 | L44: 0.01016928324 | M44: 0.01247201534 | N44: -1.564352655e-09 | O44: -0.008195294348 | P44: -0.00490654354 | Q44: 0.0006930608308 | R44: -6.660850518e-10 | S44: -0.004322064021 | T44: -0.005295133965 | U44: 0.7446652091
F45: 0.19 | G45: 0.4295509863 | H45: 0.2512161385 | I45: 0.08286749633 | J45: -2.145980679e-09 | K45: -0.004781964025 | L45: 0.01278236011 | M45: 0.01342427613 | N45: -1.564352642e-09 | O45: -0.007454890464 | P45: -0.003339728876 | Q45: 0.001762053317 | R45: -8.051584855e-10 | S45: -0.004501897775 | T45: -0.004832022934 | U45: 0.7666928021
F46: 0.195 | G46: 0.4394260404 | H46: 0.2542164026 | I46: 0.08190294637 | J46: -1.998254825e-09 | K46: -0.002398374692 | L46: 0.01528197985 | M46: 0.01421439731 | N46: -1.539681852e-09 | O46: -0.006565741498 | P46: -0.001690679001 | Q46: 0.00277856948 | R46: -9.157087777e-10 | S46: -0.004494657958 | T46: -0.004136170378 | U46: 0.7885347081
F47: 0.2 | G47: 0.4491926728 | H47: 0.2569657858 | I47: 0.08075655138 | J47: -1.842642773e-09 | K47: 1.418689945e-09 | L47: 0.01764595564 | M47: 0.01483283573 | N47: -1.490729358e-09 | O47: -0.005545588359 | P47: 1.003165222e-09 | Q47: 0.003712336096 | R47: -9.938196289e-10 | S47: -0.004300645417 | T47: -0.003241093065 | U47: 0.8100188087
F48: 0.205 | G48: 0.4588484735 | H48: 0.2594615748 | I48: 0.07943085665 | J48: -1.679758651e-09 | K48: 0.002398377521 | L48: 0.01985330468 | M48: 0.01527212183 | N48: -1.418267172e-09 | O48: -0.004414785841 | P48: 0.001690680983 | Q48: 0.004535544337 | R48: -1.036723923e-09 | S48: -0.003927922222 | T48: -0.002189903716 | U48: 0.8309583184
F49: 0.21 | G49: 0.4683910603 | H49: 0.2617013065 | I49: 0.07792880554 | J49: -1.510245289e-09 | K49: 0.004781966827 | L49: 0.02188443438 | M49: 0.01552694988 | N49: -1.323438064e-09 | O49: -0.003195896491 | P49: 0.003339730784 | Q49: 0.005223677951 | R49: -1.042901755e-09 | S49: -0.003391976654 | T49: -0.001033234419 | U49: 0.8511568207
F50: 0.215 | G50: 0.4778180785 | H50: 0.2636827706 | I50: 0.076253733 | J50: -1.334771679e-09 | K50: 0.007136073717 | L50: 0.02372131629 | M50: 0.01559424204 | N50: -1.207737547e-09 | O50: -0.001913240425 | P50: 0.004906545327 | Q50: 0.005756243391 | R50: -1.012134271e-09 | S50: -0.002715079599 | T50: 0.0001732021411 | U50: 0.8704138814
F51: 0.22 | G51: 0.4871272023 | H51: 0.2654040116 | I51: 0.07440935809 | J51: -1.154030334e-09 | K51: 0.009446184338 | L51: 0.0253476461 | M51: 0.01547318555 | N51: -1.072990286e-09 | O51: -0.0005924100753 | P51: 0.006352544437 | Q51: 0.006117380141 | R51: -9.455114241e-10 | S51: -0.001925359096 | T51: 0.001371296164 | U51: 0.8885310364
F52: 0.225 | G52: 0.4963161348 | H52: 0.266863331 | I52: 0.07239977579 | J52: -9.687345593e-10 | K52: 0.01169805609 | L52: 0.02674898841 | M52: 0.01516524254 | N52: -9.213213277e-10 | O52: 0.0007402404464 | P52: 0.007642122816 | Q52: 0.00629633306 | R52: -8.453933631e-10 | S52: -0.001055631488 | T52: 0.002503339681 | U52: 0.9053179303
F53: 0.23 | G53: 0.5053826086 | H53: 0.2680592884 | I53: 0.07022944788 | J53: -7.796156313e-10 | K53: 0.01387780543 | L53: 0.02791290479 | M53: 0.01467413237 | N53: -7.551225809e-10 | O53: 0.002058121183 | P53: 0.008743526762 | Q53: 0.006287772689 | R53: -7.153268199e-10 | S53: -0.0001420377691 | T53: 0.003514806143 | U53: 0.9205983743
F54: 0.235 | G54: 0.5143243869 | H54: 0.2689907037 | I54: 0.06790319303 | J54: -5.874199165e-10 | K54: 0.01597199349 | L54: 0.02882906425 | M54: 0.01400578672 | N54: -5.770150996e-10 | O54: 0.003334936877 | P54: 0.009629636055 | Q54: 0.006091953969 | R54: -5.599194667e-10 | S54: 0.0007774582416 | T54: 0.004356976775 | U54: 0.9342160882
F55: 0.24 | G55: 0.5231392633 | H55: 0.2696566576 | I55: 0.06542617611 | J55: -3.929059236e-10 | K55: 0.01796770889 | L55: 0.02948933489 | M55: 0.01316827793 | N55: -3.898077452e-10 | O55: 0.004545211624 | P55: 0.01027863174 | Q55: 0.005714708643 | R55: -3.846766867e-10 | S55: 0.001664647457 | T55: 0.004989287182 | U55: 0.9460399042
F56: 0.245 | G56: 0.5318250629 | H56: 0.2700564929 | I56: 0.06280389671 | J56: -1.968413104e-10 | K56: 0.01985264739 | L56: 0.02988785609 | M56: 0.0121717215 | N56: -1.964528896e-10 | O56: 0.005664797195 | P56: 0.0106745334 | Q56: 0.005167271588 | R56: -1.958065429e-10 | S56: 0.00248266328 | T56: 0.0053812812 | U56: 0.9559682236
F57: 0.25 | G57: 0.5403796427 | H57: 0.2701898151 | I57: 0.06004217695 | J57: 1.454909526e-16 | K57: 0.02161518771 | L57: 0.03002109056 | M57: 0.01102815393 | N57: 1.454909526e-16 | O57: 0.006671354852 | P57: 0.0108075926 | Q57: 0.004465946216 | R57: 1.454909517e-16 | S57: 0.003197513569 | T57: 0.005514077858 | U57: 0.963932552
F58: 0.255 | G58: 0.5488008918 | H58: 0.2700564925 | I58: 0.05714714853 | J58: 1.968416008e-10 | K58: 0.02324446321 | L58: 0.0298878557 | M58: 0.009751387323 | N58: 1.964531783e-10 | O58: 0.007544801065 | P58: 0.010674533 | Q58: 0.003631618944 | R58: 1.958068288e-10 | S58: 0.003779493164 | T58: 0.005381280809 | U58: 0.9698999667
F59: 0.26 | G59: 0.5570867325 | H59: 0.2696566568 | I59: 0.05412523915 | J59: 3.929062122e-10 | K59: 0.02473042886 | L59: 0.02948933411 | M59: 0.008356842592 | N59: 3.89808027e-10 | O59: 0.008267708238 | P59: 0.01027863097 | Q59: 0.002689137162 | R59: 3.846769573e-10 | S59: 0.004204418265 | T59: 0.004989286419 | U59: 0.9738744162
F60: 0.265 | G60: 0.5652351205 | H60: 0.2689907025 | I60: 0.05098315821 | J60: 5.874202023e-10 | K60: 0.02606392319 | L60: 0.02882906309 | M60: 0.006861363168 | N60: 5.770153701e-10 | O60: 0.008825652432 | P60: 0.009629634916 | Q60: 0.001666569248 | R60: 5.599197124e-10 | S60: 0.004454631371 | T60: 0.004356975677 | U60: 0.975896796
F61: 0.27 | G61: 0.5732440451 | H61: 0.2680592868 | I61: 0.04772788189 | J61: 7.796159131e-10 | K61: 0.02723672475 | L61: 0.02791290325 | M61: 0.005283011587 | N61: 7.551228359e-10 | O61: 0.009207501161 | P61: 0.008743525288 | Q61: 0.0005943686552 | R61: 7.15327032e-10 | S61: 0.004519735032 | T61: 0.003514804763 | U61: 0.9760437905
F62: 0.275 | G62: 0.5811115303 | H62: 0.266863329 | I62: 0.04436663775 | J62: 9.68734836e-10 | K62: 0.02824160285 | L62: 0.02674898651 | M62: 0.003640851319 | N62: 9.213215631e-10 | O62: 0.009405635519 | P62: 0.007642121042 | Q62: -0.000495533038 | R62: 8.453935342e-10 | S62: 0.004397023907 | T62: 0.002503338085 | U62: 0.974425526
F63: 0.28 | G63: 0.5888356349 | H63: 0.2654040093 | I63: 0.04090688856 | J63: 1.154030605e-09 | K63: 0.02907236207 | L63: 0.02534764386 | M63: 0.001954716523 | N63: 1.072990498e-09 | O63: 0.009416102192 | P63: 0.006352542408 | Q63: -0.001570677089 | R63: 9.45511548e-10 | S63: 0.004091597179 | T63: 0.001371294429 | U63: 0.9711821175
F64: 0.285 | G64: 0.5964144531 | H64: 0.2636827679 | I64: 0.03735631586 | J64: 1.334771942e-09 | K64: 0.02972388051 | L64: 0.02372131372 | M64: 0.0002449724862 | N64: 1.207737732e-09 | O64: 0.009238692343 | P64: 0.004906543093 | Q64: -0.002599044258 | R64: 1.012134343e-09 | S64: 0.003616146668 | T64: 0.0001732003506 | U64: 0.9664792453
F65: 0.29 | G65: 0.603846115 | H65: 0.2617013034 | I65: 0.03372280278 | J65: 1.510245544e-09 | K65: 0.03019214133 | L65: 0.02188443152 | M65: -0.00146773035 | N65: 1.32343822e-09 | O65: 0.008876945775 | P65: 0.003339728399 | Q65: -0.003550008384 | R65: 1.042901773e-09 | S65: 0.002990429424 | T65: -0.001033236178 | U65: 0.9605029266
F66: 0.295 | G66: 0.6111287869 | H66: 0.2594615713 | I66: 0.03001441665 | J66: 1.679758897e-09 | K66: 0.03047425756 | L66: 0.01985330155 | M66: -0.003162705808 | N66: 1.418267296e-09 | O66: 0.008338080302 | P66: 0.001690678506 | Q66: -0.004395248473 | R66: 1.036723887e-09 | S66: 0.002240446739 | T66: -0.00218990536 | U66: 0.953453684
F67: 0.3 | G67: 0.618260672 | H67: 0.2569657819 | I67: 0.02623939101 | J67: 1.842643008e-09 | K67: 0.03056848984 | L67: 0.01764595226 | M67: -0.004819481823 | N67: 1.490729448e-09 | O67: 0.007632847738 | P67: -1.504747814e-09 | Q67: -0.005109592136 | R67: 9.93819539e-10 | S67: 0.001397363679 | T67: -0.003241094515 | U67: 0.9455403328
F68: 0.305 | G68: 0.6252400104 | H68: 0.2542163984 | I68: 0.02240610735 | J68: 1.99825505e-09 | K68: 0.03047425722 | L68: 0.01528197625 | M68: -0.006418047704 | N68: 1.539681906e-09 | O68: 0.006775319367 | P68: -0.001690681478 | Q68: -0.005671765253 | R68: 9.157086375e-10 | S68: 0.0004962140376 | T68: -0.004136171563 | U68: 0.9369736214
F69: 0.31 | G69: 0.6320650802 | H69: 0.2512161339 | I69: 0.01852307653 | J69: 2.145980891e-09 | K69: 0.03019214066 | L69: 0.01278235633 | M69: -0.007939095832 | N69: 1.56435266e-09 | O69: 0.005782605181 | P69: -0.003339731261 | Q69: -0.006065025553 | R69: 8.051583001e-10 | S69: -0.0004255554702 | T69: -0.004832023797 | U69: 0.9279599654
F70: 0.315 | G70: 0.6387341974 | H70: 0.2479679494 | I70: 0.01459891985 | J70: 2.285237526e-09 | K70: 0.02972387951 | L70: 0.0101692793 | M70: -0.00936425485 | N70: 1.564352637e-09 | O70: 0.004674512495 | P70: -0.004906545774 | Q70: -0.006277661213 | R70: 6.660848276e-10 | S70: -0.001329641284 | T70: -0.005295134465 | U70: 0.918695505
F71: 0.32 | G71: =β01*SIN(1*π*F71) -> 0.6452457165 | H71: =β02*SIN(2*π*F71) -> 0.2444750506 | I71: =β03*SIN(3*π*F71) -> 0.01064234992 | J71: =β04*SIN(4*π*F71) -> 2.415475372e-09 | K71: =β05*SIN(5*π*F71) -> 0.02907236076 | L71: =β06*SIN(6*π*F71) -> 0.007465939034 | M71: =β07*SIN(7*π*F71) -> -0.01067631156 | N71: =β08*SIN(8*π*F71) -> 1.539681838e-09 | O71: =β09*SIN(9*π*F71) -> 0.003473150732 | P71: =β10*SIN(10*π*F71) -> -0.006352544843 | Q71: =β11*SIN(11*π*F71) -> -0.006303339656 | R71: =β12*SIN(12*π*F71) -> 5.034149673e-10 | S71: =β13*SIN(13*π*F71) -> -0.002178474679 | T71: =β14*SIN(14*π*F71) -> -0.005503197157 | U71: 0.9093607041
F72: 0.325 | G72: 0.6515980309 | H72: 0.2407408843 | I72: 0.006662151304 | J72: 2.53618044e-09 | K72: 0.02824160122 | L72: 0.004696330559 | M72: -0.01185941882 | N72: 1.490729336e-09 | O72: 0.002202490287 | P72: -0.00764212317 | Q72: -0.006141296143 | R72: 3.229113804e-10 | S72: -0.00293678291 | T72: -0.005446190228 | U72: =SUM(G72:T72) -> 0.9001156816
F73: 0.33 | G73: 0.6577895732 | H73: 0.2367691358 | I73: 0.002667161047 | J73: 2.646876362e-09 | K73: 0.02723672282 | L73: 0.00188503712 | M73: -0.01289928697 | N73: 1.418267141e-09 | O73: 0.0008878842465 | P73: -0.008743527057 | Q73: -0.00579635655 | R73: 1.309684964e-10 | S73: -0.003573054947 | T73: -0.005126859499 | U73: 0.8910964334
F74: 0.335 | G74: 0.6638188158 | H74: 0.2325637248 | I74: -0.001333750974 | J74: 2.747126272e-09 | K74: 0.02606392096 | L74: -0.000942988042 | M74: -0.01378335637 | N74: 1.323438025e-09 | O74: -0.000444437469 | P74: -0.009629636282 | Q74: -0.005278793641 | R74: -6.561401193e-11 | S74: -0.004060850902 | T74: -0.004560586007 | U74: 0.8824120658
F75: 0.34 | G75: 0.6696842709 | H75: 0.2281288015 | I75: -0.005331701735 | J75: 2.836534529e-09 | K75: 0.02473042636 | L75: -0.003762643175 | M75: -0.01450094916 | N75: 1.2077375e-09 | O75: -0.001767891464 | P75: -0.0102786319 | Q75: -0.004604021139 | R75: -2.598721111e-10 | S75: -0.004379900715 | T75: -0.003774645152 | U75: 0.8741431181
F76: 0.345 | G76: 0.6753844916 | H76: 0.2234687425 | I76: -0.009317814784 | J76: 2.91474828e-09 | K76: 0.02324446045 | L76: -0.00654890082 | M76: -0.01504339819 | N76: 1.072990233e-09 | O76: -0.003056071276 | P76: -0.01067453347 | Q76: -0.003792134679 | R76: -4.44924111e-10 | S76: -0.004516946469 | T76: -0.002806892936 | U76: 0.8663410055
F77: 0.35 | G77: 0.6809180712 | H77: 0.2185881469 | I77: -0.01328323995 | J77: 2.981458851e-09 | K77: 0.0216151847 | L77: -0.009277029956 | M77: -0.01540415171 | N77: 9.213212688e-10 | O77: -0.004283274261 | P77: -0.0108075926 | Q77: -0.002867313334 | R77: -6.142144519e-10 | S77: -0.004466293314 | T77: -0.001703942574 | U77: 0.8590285684
F78: 0.355 | G78: 0.6862836444 | H78: 0.2134918312 | I78: -0.01721917301 | J78: 3.036402966e-09 | K78: 0.01985264415 | L78: -0.01192281552 | M78: -0.01557885251 | N78: 7.551225172e-10 | O78: -0.005425014423 | P78: -0.01067453292 | Q78: -0.001857099531 | R78: -7.61745939e-10 | S78: -0.004230046109 | T78: -0.0005189193005 | U78: 0.8522016695
F79: 0.36 | G79: 0.6914798874 | H79: 0.2081848248 | I79: -0.02111687519 | J79: 3.079363785e-09 | K79: 0.01796770545 | L79: -0.01446277332 | M79: -0.01556539053 | N79: 5.77015032e-10 | O79: -0.006458510981 | P79: -0.01027863081 | Q79: -0.0007915788001 | R79: -8.822921957e-10 | S79: -0.003818021961 | T79: 0.0006910984877 | U79: 0.8458317374
F80: 0.365 | G80: 0.6965055181 | H80: 0.2026723651 | I80: -0.02496769263 | J80: 3.110171762e-09 | K80: 0.01597198986 | L80: -0.01687435851 | M80: -0.01536392838 | N80: 3.898076747e-10 | O80: -0.007363142902 | P80: -0.009629634688 | Q80: 0.0002975162154 | R80: -9.715828106e-10 | S80: -0.003247342277 | T80: 0.001867828496 | U80: 0.839869121
F81: 0.37 | G81: 0.7013592965 | H81: 0.1969598923 | I81: -0.02876307554 | J81: 3.128705311e-09 | K81: 0.01387780164 | L81: -0.01913616571 | M81: -0.01497689932 | N81: 1.964528174e-10 | O81: -0.008120860351 | P81: -0.008743524993 | Q81: 0.001377750797 | R81: -1.026454619e-09 | S81: -0.002541721299 | T81: 0.002954591785 | U81: 0.8342470881
F82: 0.375 | G82: 0.706040025 | H82: 0.1910530438 | I82: -0.03249459723 | J82: 3.134891289e-09 | K82: 0.01169805216 | L82: -0.02122811893 | M82: -0.01440897793 | N82: -2.182364282e-16 | O82: -0.00871654483 | P82: -0.007642120688 | Q82: 0.002416954101 | R82: -1.04496376e-09 | S82: -0.001730480667 | T82: 0.003899042796 | U82: 0.8288862796
F83: 0.38 | G83: 0.7105465486 | H83: 0.184957649 | I83: -0.03615397279 | J83: 3.128705283e-09 | K83: 0.00944618029 | L83: -0.02313164987 | M83: -0.01366702362 | N83: -1.964532505e-10 | O83: -0.009138310835 | P83: -0.006352542003 | Q83: 0.003384177253 | R83: -1.026454537e-09 | S83: -0.0008473309851 | T83: 0.004655690649 | U83: 0.8236994176
F84: 0.385 | G84: 0.7148777555 | H84: 0.1786797233 | I84: -0.03973307749 | J84: 3.110171707e-09 | K84: 0.007136069579 | L84: -0.02482986263 | M84: -0.01275999778 | N84: -3.898080975e-10 | O84: -0.009377743 | P84: -0.004906542646 | Q84: 0.004250615043 | R84: -9.715826499e-10 | S84: 7.102901094e-05 | T84: 0.005188090283 | U84: 0.818596061
F85: 0.39 | G85: 0.7190325771 | H85: 0.1722254624 | I85: -0.04322396481 | J85: 3.079363703e-09 | K85: 0.004781962623 | L85: -0.02630768377 | M85: -0.01169885554 | N85: -5.770154378e-10 | O85: -0.009430064013 | P85: -0.003339727922 | Q85: 0.004990463784 | R85: -8.822919618e-10 | S85: 0.0009864374405 | T85: 0.005470597883 | U85: 0.8134872067
F86: 0.395 | G86: 0.723009988 | H86: 0.1656012357 | I86: -0.04661888412 | J86: 3.036402857e-09 | K86: 0.002398373278 | L86: -0.02755199604 | M86: -0.01049641348 | N86: -7.551228996e-10 | O86: -0.009294229926 | P86: -0.00169067801 | Q86: 0.005581689784 | R86: -7.617456402e-10 | S86: 0.001860855074 | T86: 0.005489606053 | U86: 0.8082895478
F87: 0.4 | G87: 0.7268090071 | H87: 0.1588135805 | I87: -0.04991029785 | J87: 2.981458716e-09 | K87: -2.837379889e-09 | L87: -0.02855175484 | M87: -0.009167194796 | N87: -9.213216219e-10 | O87: -0.008972950997 | P87: 2.006330444e-09 | Q87: 0.006006685535 | R87: -6.142140988e-10 | S87: 0.002657946028 | T87: 0.005244199236 | U87: 0.8029292206
F88: 0.405 | G88: 0.730428697 | H88: 0.1518691955 | I88: -0.05309089823 | J88: 2.91474812e-09 | K88: -0.002398378935 | L88: -0.02929808623 | M88: -0.007727253914 | N88: -1.072990551e-09 | O88: -0.008472637601 | P88: 0.001690681974 | Q88: 0.006252794091 | R88: -4.44923716e-10 | S88: 0.003344587683 | T88: 0.004746197814 | U88: 0.7973449005
F89: 0.41 | G89: 0.7338681644 | H89: 0.144774934 | I89: -0.05615362353 | J89: 2.836534343e-09 | K89: -0.004781968228 | L89: -0.02978436573 | M89: -0.006193982568 | N89: -1.207737779e-09 | O89: -0.007803272335 | P89: 0.003339731738 | Q89: 0.006312686005 | R89: -2.598716884e-10 | S89: 0.003892247071 | T89: 0.004019588762 | U89: 0.791490141
F90: 0.415 | G90: 0.7371265609 | H90: 0.137537797 | I90: -0.05909167375 | J90: 2.747126061e-09 | K90: -0.007136075097 | L90: -0.03000627708 | M90: -0.004585899747 | N90: -1.323438259e-09 | O90: -0.006978210833 | P90: 0.004906546221 | Q90: 0.006184577618 | R90: -6.561357632e-11 | S90: 0.004278166545 | T90: 0.003099370279 | U90: 0.7853348835
F91: 0.42 | G91: 0.7402030824 | H91: 0.1301649269 | I91: -0.06189852566 | J91: 2.646876128e-09 | K91: -0.009446185687 | L91: -0.02996185058 | M91: -0.002922428019 | N91: -1.418267327e-09 | O91: -0.006013915287 | P91: 0.006352545249 | Q91: 0.005872284169 | R91: 1.309689295e-10 | S91: 0.004486309461 | T91: 0.002029866046 | U91: 0.7788661104
F92: 0.425 | G92: 0.7430969699 | H92: 0.1226635997 | I92: -0.06456794737 | J92: 2.536180183e-09 | K92: -0.0116980574 | L92: -0.02965148056 | M92: -0.001223658944 | N92: -1.490729471e-09 | O92: -0.004929625982 | P92: 0.007642123525 | Q92: 0.005385106178 | R92: 3.229117955e-10 | S92: 0.004508026569 | T92: 0.0008625903161 | U92: 0.7720876473
F93: 0.43 | G93: 0.7458075094 | H93: 0.1150412183 | I93: -0.06709401208 | J93: 2.415475093e-09 | K93: -0.0138778067 | L93: -0.0290779219 | M93: 0.000489889594 | N93: -1.53968192e-09 | O93: -0.003746977403 | P93: 0.008743527351 | Q93: 0.004737552463 | R93: 5.034153498e-10 | S93: 0.004342415427 | T93: -0.000346233351 | U93: 0.7650191624
F94: 0.435 | G94: 0.7483340319 | H94: 0.1073053051 | I94: -0.06947111131 | J94: 2.285237227e-09 | K94: -0.0159719947 | L94: -0.02824626554 | M94: 0.002197521201 | N94: -1.564352664e-09 | O94: -0.002489566563 | P94: 0.00962963651 | Q94: 0.003948908046 | R94: 6.660851639e-10 | S94: 0.003996357905 | T94: -0.001538380177 | U94: 0.7576944438
F95: 0.44 | G95: 0.7506759143 | H95: 0.09946349455 | I95: -0.07169396729 | J95: 2.145980573e-09 | K95: -0.01796771004 | L95: -0.02716389332 | M95: 0.003878610951 | N95: -1.564352633e-09 | O95: -0.001182482186 | P95: 0.01027863205 | Q95: 0.003042659823 | R95: 8.051585783e-10 | S95: 0.003484234209 | T95: -0.002656428649 | U95: 0.7501590658
F96: 0.445 | G96: 0.7528325786 | H96: 0.09152352553 | I96: -0.07375764472 | J96: 1.998254713e-09 | K96: -0.01985264847 | L96: -0.02584041245 | M96: 0.005512854491 | N96: -1.539681824e-09 | O96: 0.0001481958868 | P96: 0.01067453355 | Q96: 0.002045797087 | R96: 9.157088478e-10 | S96: 0.002827325319 | T96: -0.00364652631 | U96: 0.7424675798
F97: 0.45 | G97: 0.7548034927 | H97: 0.08349323383 | I97: -0.07565756174 | J97: 1.842642655e-09 | K97: -0.02161518872 | L97: -0.02428757024 | M97: 0.007080513281 | N97: -1.490729313e-09 | O97: 0.001475917053 | P97: 0.0108075926 | Q97: 0.0009880077545 | R97: 9.938196739e-10 | S97: 0.00205292868 | T97: -0.004460983643 | U97: 0.7346803829
F98: 0.455 | G98: 0.7565881703 | H98: 0.07538054439 | I98: -0.07738950004 | J98: 1.679758528e-09 | K98: -0.02324446413 | L98: -0.02251914984 | M98: 0.008562652998 | N98: -1.41826711e-09 | O98: 0.002774189712 | P98: 0.01067453285 | Q98: -9.920578104e-05 | R98: 1.036723942e-09 | S98: 0.001193223861 | T98: -0.005060571108 | U98: 0.7268604245
F99: 0.46 | G99: 0.7581861711 | H99: 0.06719346345 | I99: -0.0789496143 | J99: 1.510245162e-09 | K99: -0.02473042969 | L99: -0.02055084786 | M99: 0.009941372226 | N99: -1.323437986e-09 | O99: 0.004017109836 | P99: 0.01027863066 | Q99: -0.001183464835 | R99: 1.042901746e-09 | S99: 0.0002839353653 | T99: -0.005416408689 | U99: 0.7190699185
F100: 0.465 | G100: 0.7595971009 | H100: 0.05894007067 | I100: -0.08033444066 | J100: 1.334771547e-09 | K100: -0.02606392393 | L100: -0.01840013509 | M100: 0.01120001867 | N100: -1.207737454e-09 | O100: 0.005179877832 | P100: 0.009629634461 | Q100: -0.00223247871 | R100: 1.012134234e-09 | S100: -0.0006371518887 | T100: -0.005511356942 | U100: 0.7113672164
F101: 0.47 | G101: 0.7608206113 | H101: 0.05062851116 | I101: -0.08154090447 | J101: 1.154030199e-09 | K101: -0.0272367254 | L101: -0.01608610142 | M101: 0.01232339029 | N101: -1.07299018e-09 | O101: 0.006239293357 | P101: 0.008743524698 | Q101: -0.003215006358 | R101: 9.455113621e-10 | S101: -0.001531762691 | T101: -0.005340842544 | U101: 0.703803989
F102: 0.475 | G102: 0.7618564007 | H102: 0.04226698741 | I102: -0.08256632708 | J102: 9.687344209e-10 | K102: -0.0282416034 | L102: -0.01362928637 | M102: 0.0132979189 | N102: -9.2132121e-10 | O102: 0.007174218227 | P102: 0.007642120333 | Q102: -0.004101786781 | R102: 8.453932776e-10 | S102: -0.002362722044 | T102: -0.004913078574 | U102: 0.6964228423
F103: 0.48 | G103: 0.7627042135 | H103: 0.03386375125 | I103: -0.08340843179 | J103: 7.796154904e-10 | K103: -0.02907236251 | L103: -0.0110514968 | M103: 0.01411183405 | N103: -7.551224534e-10 | O103: 0.007965998178 | P103: 0.006352541597 | Q103: -0.004866410462 | R103: 7.153267139e-10 | S103: -0.003095499948 | T103: -0.004248668915 | U103: 0.6892554689
F104: 0.485 | G104: 0.7633638403 | H104: 0.02542709566 | I104: -0.08406534891 | J104: 5.874197736e-10 | K104: -0.02972388084 | L104: -0.008375613367 | M104: 0.01475530521 | N104: -5.770149643e-10 | O104: 0.008598835076 | P104: 0.004906542199 | Q104: -0.005486105878 | R104: 5.599193439e-10 | S104: -0.003699646271 | T104: -0.003379615841 | U104: 0.6823214079
F105: 0.49 | G105: 0.7638351186 | H105: 0.01696534659 | I105: -0.08453561993 | J105: 3.929057792e-10 | K105: -0.03019214155 | L105: -0.005625387391 | M105: 0.01522056048 | N105: -3.898076043e-10 | O105: 0.009060102125 | P105: 0.003339727445 | Q105: -0.005942417661 | R105: 3.846765515e-10 | S105: -0.004150056087 | T105: -0.002347778576 | U105: 0.6756274544
F106: 0.495 | G106: 0.7641179319 | H106: 0.008486854778 | I106: -0.08481820073 | J106: 1.968411652e-10 | K106: -0.03047425767 | L106: -0.002825230077 | M106: 0.01550198045 | N106: -1.964527453e-10 | O106: 0.009340595809 | P106: 0.001690677515 | Q106: -0.006221756233 | R106: 1.958064e-10 | S106: -0.004428012895 | T106: -0.001202857087 | U106: 0.669167726
F107: 0.5 | G107: 0.7642122106 | H107: -1.253956516e-08 | I107: -0.08491246391 | J107: -2.909819052e-16 | K107: -0.03056848984 | L107: 4.179855039e-09 | M107: 0.01559616612 | N107: 2.909819052e-16 | O107: 0.009434719525 | P107: -2.507913036e-09 | Q107: -0.006315802514 | R107: -2.909819033e-16 | S107: -0.004521966373 | T107: 1.791366448e-09 | U107: 0.6629243646
F108: 0.505 | G108: 0.7641179314 | H108: -0.008486879845 | I108: -0.08481820017 | J108: -1.96841746e-10 | K108: -0.03047425711 | L108: 0.0028252384 | M108: 0.01550197989 | N108: 1.964533226e-10 | O108: 0.009340595254 | P108: -0.001690682469 | Q108: -0.006221755679 | R108: -1.958069717e-10 | S108: -0.004428012342 | T108: 0.001202860583 | U108: 0.6568688177
F109: 0.51 | G109: 0.7638351175 | H109: -0.01696537162 | I109: -0.08453561882 | J109: -3.929063566e-10 | K109: -0.03019214044 | L109: 0.005625395603 | M109: 0.01522055937 | N109: 3.89808168e-10 | O109: 0.009060101026 | P109: -0.003339732215 | Q109: -0.005942416569 | R109: -3.846770926e-10 | S109: -0.004150055003 | T109: 0.002347781817 | U109: 0.6509636202
F110: 0.515 | G110: 0.7633638387 | H110: -0.02542712063 | I110: -0.08406534724 | J110: -5.874203452e-10 | K110: -0.02972387918 | L110: 0.008375621395 | M110: 0.01475530357 | N110: 5.770155054e-10 | O110: 0.008598833454 | P110: -0.004906546668 | Q110: -0.00548610428 | R110: -5.599198353e-10 | S110: -0.003699644702 | T110: 0.003379618672 | U110: 0.6451645725
F111: 0.52 | G111: 0.7627042112 | H111: -0.03386377614 | I111: -0.08340842957 | J111: -7.796160541e-10 | K111: -0.02907236032 | L111: 0.01105150458 | M111: 0.01411183189 | N111: 7.551229634e-10 | O111: 0.007965996067 | P111: -0.006352545655 | Q111: -0.004866408407 | R111: -7.153271381e-10 | S111: -0.00309549796 | T111: 0.004248671199 | U111: 0.6394231962
F112: 0.525 | G112: 0.761856398 | H112: -0.04226701218 | I112: -0.08256632432 | J112: -9.687349744e-10 | K112: -0.02824160068 | L112: 0.01362929382 | M112: 0.01329791625 | N112: 9.213216808e-10 | O112: 0.007174215667 | P112: -0.00764212388 | Q112: -0.004101784329 | R112: -8.453936197e-10 | S112: -0.002362719718 | T112: 0.004913080201 | U112: 0.6336893379
F113: 0.53 | G113: 0.760820608 | H113: -0.05062853579 | I113: -0.08154090118 | J113: -1.15403074e-09 | K113: -0.02723672218 | L113: 0.01608610848 | M113: 0.01232338718 | N113: 1.072990605e-09 | O113: 0.006239290401 | P113: -0.008743527646 | Q113: -0.003215003583 | R113: -9.455116099e-10 | S113: -0.001531760124 | T113: 0.005340843435 | U113: 0.627913786
F114: 0.535 | G114: 0.759597097 | H114: -0.05894009514 | I114: -0.08033443683 | J114: -1.334772074e-09 | K114: -0.02606392022 | L114: 0.0184001417 | M114: 0.01120001515 | N114: 1.207737825e-09 | O114: 0.005179874539 | P114: -0.009629636738 | Q114: -0.002232475693 | R114: -1.012134379e-09 | S114: -0.0006371491877 | T114: 0.005511357054 | U114: 0.6220507704
F115: 0.54 | G115: 0.7581861667 | H115: -0.06719348774 | I115: -0.07894960995 | J115: -1.510245672e-09 | K115: -0.02473042552 | L115: 0.02055085395 | M115: 0.009941368322 | N115: 1.323438298e-09 | O115: 0.00401710627 | P115: -0.01027863221 | Q115: -0.001183461667 | R115: -1.042901782e-09 | S115: 0.0002839380882 | T115: 0.005416408017 | U115: 0.616060223
F116: 0.545 | G116: 0.7565881653 | H116: -0.07538056847 | I116: -0.07738949518 | J116: -1.67975902e-09 | K116: -0.02324445953 | L116: 0.02251915537 | M116: 0.008562648763 | N116: 1.418267357e-09 | O116: 0.002774185945 | P116: -0.01067453363 | Q116: -9.920255715e-05 | R116: -1.036723869e-09 | S116: 0.001193226493 | T116: 0.005060569685 | U116: 0.6099096909
F117: 0.55 | G117: 0.7548034871 | H117: -0.08349325768 | I117: -0.07565755637 | J117: -1.842643126e-09 | K117: -0.0216151837 | L117: 0.02428757516 | M117: 0.007080508766 | N117: 1.490729493e-09 | O117: 0.001475913161 | P117: -0.0108075926 | Q117: 0.0009880109391 | R117: -9.93819494e-10 | S117: 0.00205293111 | T117: 0.004460981538 | U117: 0.6035758161
F118: 0.555 | G118: 0.7528325725 | H118: -0.09152354912 | I118: -0.07375763887 | J118: -1.998255162e-09 | K118: -0.01985264308 | L118: 0.02584041671 | M118: 0.005512849751 | N118: 1.539681933e-09 | O118: 0.0001481919465 | P118: -0.01067453277 | Q118: 0.002045800137 | R118: -9.157085674e-10 | S118: 0.002827327449 | T118: 0.003646523623 | U118: 0.5970453169
F119: 0.56 | G119: 0.7506759076 | H119: -0.09946351787 | I119: -0.07169396095 | J119: -2.145980997e-09 | K119: -0.0179677043 | L119: 0.02716389688 | M119: 0.003878606043 | N119: 1.564352669e-09 | O119: -0.001182486095 | P119: -0.0102786305 | Q119: 0.003042662648 | R119: -8.051582073e-10 | S119: 0.003484235948 | T119: 0.002656425509 | U119: 0.5903154335
F120: 0.565 | G120: 0.7483340247 | H120: -0.1073053281 | I120: -0.06947110451 | J120: -2.285237625e-09 | K120: -0.01597198865 | L120: 0.02824626837 | M120: 0.002197516185 | N120: 1.564352628e-09 | O120: -0.002489570364 | P120: -0.009629634233 | Q120: 0.003948910563 | R120: -6.660847155e-10 | S120: 0.003996359182 | T120: 0.001538376737 | U120: 0.5833938285
F121: 0.57 | G121: 0.7458075016 | H121: -0.115041241 | I121: -0.06709400484 | J121: -2.415475464e-09 | K121: -0.01387780038 | L121: 0.02907792398 | M121: 0.0004898845298 | N121: 1.539681811e-09 | O121: -0.00374698102 | P121: -0.008743524403 | Q121: 0.004737554595 | R121: -5.034148398e-10 | S121: 0.004342416189 | T121: 0.0003462297753 | U121: 0.5762979577
F122: 0.575 | G122: 0.7430969616 | H122: -0.122663622 | I122: -0.06456793969 | J122: -2.536180525e-09 | K122: -0.01169805085 | L122: 0.02965148187 | M122: -0.001223663995 | N122: 1.490729291e-09 | O122: -0.004929629343 | P122: -0.007642119978 | Q122: 0.005385107862 | R122: -3.22911242e-10 | S122: 0.004508026783 | T122: -0.0008625938547 | U122: 0.5690539571
F123: 0.58 | G123: 0.7402030736 | H123: -0.1301649489 | I123: -0.06189851757 | J123: -2.64687644e-09 | K123: -0.009446178941 | L123: 0.0299618511 | M123: -0.002922432996 | N123: 1.418267079e-09 | O123: -0.006013918323 | P123: -0.006352541191 | Q123: 0.005872285356 | R123: -1.309683521e-10 | S123: 0.004486309119 | T123: -0.002029869377 | U123: 0.5616951106
F124: 0.585 | G124: 0.7371265516 | H124: -0.1375378186 | I124: -0.05909166526 | J124: -2.747126342e-09 | K124: -0.007136068199 | L124: 0.03000627681 | M124: -0.00458590459 | N124: 1.323437947e-09 | O124: -0.006978213485 | P124: -0.004906541752 | Q124: 0.006184578272 | R124: 6.561415714e-11 | S124: 0.004278165662 | T124: -0.003099373242 | U124: 0.5542599858
F125: 0.59 | G125: 0.7338681545 | H125: -0.1447749551 | I125: -0.05615361466 | J125: -2.836534591e-09 | K125: -0.004781961222 | L125: 0.02978436468 | M125: -0.006193987219 | N125: 1.207737408e-09 | O125: -0.00780327455 | P125: -0.003339726968 | Q125: 0.006312686107 | R125: 2.598722521e-10 | S125: 0.003892245682 | T125: -0.004019591215 | U125: 0.5467903387
F126: 0.595 | G126: 0.7304286865 | H126: -0.1518692163 | I126: -0.053090889 | J126: -2.914748334e-09 | K126: -0.002398371863 | L126: 0.02929808441 | M126: -0.007727258315 | N126: 1.072990127e-09 | O126: -0.008472639335 | P126: -0.001690677019 | Q126: 0.006252793636 | R126: 4.449242426e-10 | S126: 0.003344585847 | T126: -0.004746199638 | U126: 0.5393288976
F127: 0.6 | G127: 0.7268089962 | H127: -0.1588136008 | I127: -0.04991028828 | J127: -2.981458896e-09 | K127: 4.25606978e-09 | L127: 0.02855175226 | M127: -0.009167198895 | N127: 9.213211511e-10 | O127: -0.008972952215 | P127: 3.009495628e-09 | Q127: 0.006006684539 | R127: 6.142145696e-10 | S127: 0.002657943821 | T127: -0.005244200343 | U127: 0.5319171421
F128: 0.605 | G128: 0.7230099766 | H128: -0.1656012555 | I128: -0.04661887424 | J128: -3.036403002e-09 | K128: 0.002398380349 | L128: 0.02755199272 | M128: -0.01049641723 | N128: 7.551223897e-10 | O128: -0.009294230604 | P128: 0.001690682964 | Q128: 0.005581688276 | R128: 7.617460386e-10 | S128: 0.001860852587 | T128: -0.00548960639 | U128: 0.524593188
F129: 0.61 | G129: 0.719032565 | H129: -0.1722254817 | I129: -0.04322395463 | J129: -3.079363812e-09 | K129: 0.004781969629 | L129: 0.02630767975 | M129: -0.01169885889 | N129: 5.770148967e-10 | O129: -0.009430064136 | P129: 0.003339732692 | Q129: 0.004990461808 | R129: 8.822922737e-10 | S129: 0.0009864347779 | T129: -0.005470597434 | U129: 0.5173898853
F130: 0.615 | G130: 0.714877743 | H130: -0.1786797422 | I130: -0.03973306704 | J130: -3.11017178e-09 | K130: 0.007136076476 | L130: 0.02482985793 | M130: -0.01276000069 | N130: 3.898075338e-10 | O130: -0.009377742568 | P130: 0.004906547115 | Q130: 0.004250612658 | R130: 9.715828641e-10 | S130: 7.102628303e-05 | T130: -0.005188089069 | U130: 0.5103332202
F131: 0.62 | G131: 0.7105465356 | H131: -0.1849576673 | I131: -0.03615396209 | J131: -3.12870532e-09 | K131: 0.009446187037 | L131: 0.02313164454 | M131: -0.01366702606 | N131: 1.964526731e-10 | O131: -0.009138309855 | P131: 0.00635254606 | Q131: 0.003384174531 | R131: 1.026454646e-09 | S131: -0.000847333665 | T131: -0.004655688729 | U131: 0.5034410981
F132: 0.625 | G132: 0.7060400114 | H132: -0.1910530615 | I132: -0.03249458631 | J132: -3.134891289e-09 | K132: 0.01169805871 | L132: 0.02122811302 | M132: -0.01440897987 | N132: -3.637273822e-16 | O132: -0.008716543322 | P132: 0.007642124234 | Q132: 0.002416951122 | R132: 1.04496376e-09 | S132: -0.001730483188 | T132: -0.003899040262 | U132: 0.4967225619
F133: 0.63 | G133: 0.7013592824 | H133: -0.1969599094 | I133: -0.02876306442 | J133: -3.128705274e-09 | K133: 0.01387780796 | L133: 0.01913615927 | M133: -0.01497690073 | N133: -1.964533948e-10 | O133: -0.008120858345 | P133: 0.008743527941 | Q133: 0.00137774765 | R133: 1.02645451e-09 | S133: -0.002541723555 | T133: -0.00295458876 | U133: 0.4901774777
F134: 0.635 | G134: 0.6965055035 | H134: -0.2026723817 | I134: -0.02496768133 | J134: -3.110171689e-09 | K134: 0.01597199591 | L134: 0.0168743516 | M134: -0.01536392925 | N134: -3.898082384e-10 | O134: -0.007363140438 | P134: 0.009629636966 | Q134: 0.0002975129947 | R134: 9.715825963e-10 | S134: -0.003247344176 | T134: -0.001867825125 | U134: 0.4837966965
F135: 0.64 | G135: =β01*SIN(1*π*F135) -> 0.6914798723 | H135: =β02*SIN(2*π*F135) -> -0.2081848408 | I135: =β03*SIN(3*π*F135) -> -0.02111686374 | J135: =β04*SIN(4*π*F135) -> -3.079363676e-09 | K135: =β05*SIN(5*π*F135) -> 0.01796771119 | L135: =β06*SIN(6*π*F135) -> 0.01446276599 | M135: =β07*SIN(7*π*F135) -> -0.01556539085 | N135: =β08*SIN(8*π*F135) -> -5.77015573e-10 | O135: =β09*SIN(9*π*F135) -> -0.006458508108 | P135: =β10*SIN(10*π*F135) -> 0.01027863236 | Q135: =β11*SIN(11*π*F135) -> -0.0007915819989 | R135: =β12*SIN(12*π*F135) -> 8.822918839e-10 | S135: =β13*SIN(13*π*F135) -> -0.003818023422 | T135: =β14*SIN(14*π*F135) -> -0.0006910949333 | U135: 0.4775626752
F136: 0.645 | G136: 0.6862836288 | H136: -0.2134918466 | I136: -0.01721916143 | J136: -3.036402821e-09 | K136: 0.01985264955 | L136: 0.01192280784 | M136: -0.01557885227 | N136: -7.551230271e-10 | O136: -0.005425011199 | P136: 0.01067453371 | Q136: -0.001857102613 | R136: 7.617455406e-10 | S136: -0.004230047073 | T136: 0.0005189228674 | U136: =SUM(G136:T136) -> 0.4714505186
F137: 0.65 | G137: 0.6809180551 | H137: -0.2185881617 | I137: -0.01328322828 | J137: -2.981458671e-09 | K137: 0.02161518972 | L137: 0.009277022006 | M137: -0.01540415092 | N137: -9.213217397e-10 | O137: -0.00428327075 | P137: 0.0108075926 | Q137: -0.002867316207 | R137: 6.142139811e-10 | S137: -0.004466293741 | T137: 0.001703945981 | U137: 0.4654293805
F138: 0.655 | G138: 0.675384475 | H138: -0.2234687566 | I138: -0.009317803033 | J138: -2.914748066e-09 | K138: 0.02324446505 | L138: 0.006548892662 | M138: -0.01504339685 | N138: -1.072990658e-09 | O138: -0.003056067548 | P138: 0.01067453269 | Q138: -0.003792137258 | R138: 4.449235844e-10 | S138: -0.004516946341 | T138: 0.00280689602 | U138: 0.4594641502
F139: 0.66 | G139: 0.6696842539 | H139: -0.2281288149 | I139: -0.005331689936 | J139: -2.836534281e-09 | K139: 0.02473043053 | L139: 0.003762634881 | M139: -0.01450094729 | N139: -1.207737871e-09 | O139: -0.001767887593 | P139: 0.01027863035 | Q139: -0.004604023347 | R139: 2.598715475e-10 | S139: -0.004379900036 | T139: 0.003774647764 | U139: 0.4535173305
F140: 0.665 | G140: 0.6638187982 | H140: -0.2325637376 | I140: -0.001333739153 | J140: -2.747125991e-09 | K140: 0.02606392467 | L140: 0.0009429796865 | M140: -0.013783354 | N140: -1.323438337e-09 | O140: -0.0004444335326 | P140: 0.009629634005 | Q140: -0.005278795412 | R140: 6.561343112e-11 | S140: -0.004060849701 | T140: 0.004560588021 | U140: 0.4475510112
F141: 0.67 | G141: 0.6577895551 | H141: -0.2367691479 | I141: 0.002667172864 | J141: -2.64687605e-09 | K141: 0.02723672604 | L141: -0.001885045463 | M141: -0.01289928412 | N141: -1.418267388e-09 | O141: 0.0008878881698 | P141: 0.008743524108 | Q141: -0.00579635783 | R141: -1.309690738e-10 | S141: -0.003573053275 | T141: 0.005126860818 | U141: 0.4415288343
F142: 0.675 | G142: 0.6515980124 | H142: -0.2407408957 | I142: 0.00666216309 | J142: -2.536180097e-09 | K142: 0.02824160394 | L142: -0.004696338815 | M142: -0.01185941553 | N142: -1.490729516e-09 | O142: 0.002202494119 | P142: 0.007642119624 | Q142: -0.006141296896 | R142: -3.229119338e-10 | S142: -0.002936780835 | T142: 0.005446190788 | U142: 0.4354178518
F143: 0.68 | G143: 0.6452456975 | H143: -0.2444750612 | I143: 0.01064236165 | J143: -2.415475001e-09 | K143: 0.02907236295 | L143: -0.007465947131 | M143: -0.01067630787 | N143: -1.539681947e-09 | O143: 0.003473154397 | P143: 0.006352540785 | Q143: -0.006303339858 | R143: -5.034154773e-10 | S143: -0.002178472289 | T143: 0.005503196932 | U143: 0.4291901814
F144: 0.685 | G144: 0.6387341779 | H144: -0.2479679594 | I144: 0.0145989315 | J144: -2.285237127e-09 | K144: 0.02972388117 | L144: -0.01016928717 | M144: -0.009364250798 | N144: -1.564352674e-09 | O144: 0.004674515918 | P144: 0.004906541305 | Q144: -0.006277660859 | R144: -6.66085276e-10 | S144: -0.001329638677 | T144: 0.005295133465 | U144: 0.4228243799
F145: 0.69 | G145: 0.6320650603 | H145: -0.2512161431 | I145: 0.01852308807 | J145: -2.145980467e-09 | K145: 0.03019214177 | L145: -0.01278236389 | M145: -0.007939091471 | N145: -1.564352623e-09 | O145: 0.005782608295 | P145: 0.003339726491 | Q145: -0.006065024654 | R145: -8.05158671e-10 | S145: -0.0004255527541 | T145: 0.004832022071 | U145: 0.4163064665
F146: 0.695 | G146: 0.62523999 | H146: -0.2542164069 | I146: 0.02240611876 | J146: -1.998254601e-09 | K146: 0.03047425778 | L146: -0.01528198344 | M146: -0.006418043087 | N146: -1.539681797e-09 | O146: 0.006775322109 | P146: 0.001690676524 | Q146: -0.005671763835 | R146: -9.157089179e-10 | S146: 0.0004962167494 | T146: 0.004136169194 | U146: 0.4096305494
F147: 0.7 | G147: 0.6182606511 | H147: -0.2569657897 | I147: 0.02623940225 | J147: -1.842642538e-09 | K147: 0.03056848984 | L147: -0.01764595902 | M147: -0.004819477004 | N147: -1.490729268e-09 | O147: 0.007632850055 | P147: -3.511078239e-09 | Q147: -0.00510959024 | R147: -9.938197188e-10 | S147: 0.001397366274 | T147: 0.003241091616 | U147: 0.4027990274
F148: 0.705 | G148: 0.6111287656 | H148: -0.2594615783 | I148: 0.03001442771 | J148: -1.679758406e-09 | K148: 0.030474257 | L148: -0.01985330782 | M148: -0.003162700847 | N148: -1.418267048e-09 | O148: 0.008338082146 | P148: -0.00169068346 | Q148: -0.004395246158 | R148: -1.03672396e-09 | S148: 0.002240449109 | T148: 0.002189902072 | U148: 0.395822363
F149: 0.71 | G149: 0.6038460933 | H149: -0.2617013096 | I149: 0.03372281363 | J149: -1.510245034e-09 | K149: 0.03019214022 | L149: -0.02188443724 | M149: -0.001467725306 | N149: -1.323437908e-09 | O149: 0.00887694711 | P149: -0.003339733169 | Q149: -0.003550005718 | R149: -1.042901736e-09 | S149: 0.00299043147 | T149: 0.001033232659 | U149: 0.3887184435
F150: 0.715 | G150: 0.596414431 | H150: -0.2636827733 | I150: 0.03735632647 | J150: -1.334771416e-09 | K150: 0.02972387885 | L150: -0.02372131885 | M150: 0.0002449775523 | N150: -1.207737361e-09 | O150: 0.009238693142 | P150: -0.004906547562 | Q150: -0.00259904132 | R150: -1.012134198e-09 | S150: 0.003616148306 | T150: -0.0001732039315 | U150: 0.3815115667
F151: 0.72 | G151: 0.5888356123 | H151: -0.265404014 | I151: 0.04090689892 | J151: -1.154030064e-09 | K151: 0.02907235988 | L151: -0.02534764834 | M151: 0.00195472155 | N151: -1.072990074e-09 | O151: 0.00941610244 | P151: -0.006352546466 | Q151: -0.001570673966 | R151: -9.455113002e-10 | S151: 0.004091598341 | T151: -0.001371297899 | U151: 0.3742311096
F152: 0.725 | G152: 0.5811115072 | H152: -0.2668633329 | I152: 0.04436664783 | J152: -9.687342826e-10 | K152: 0.02824160014 | L152: -0.02674899031 | M152: 0.003640856246 | N152: -9.213210923e-10 | O152: 0.00940563521 | P152: -0.007642124589 | Q152: -0.0004955298237 | R152: -8.453931921e-10 | S152: 0.004397024544 | T152: -0.002503341277 | U152: 0.3669099495
F153: 0.73 | G153: 0.5732440216 | H153: -0.26805929 | I153: 0.04772789167 | J153: -7.796153495e-10 | K153: 0.02723672153 | L153: -0.02791290633 | M153: 0.005283016354 | N153: -7.551223259e-10 | O153: 0.009207500301 | P153: -0.008743528236 | Q153: 0.0005943718652 | R153: -7.153266078e-10 | S153: 0.004519735118 | T153: -0.003514807524 | U153: 0.3595827242
F154: 0.735 | G154: 0.5652350966 | H154: -0.2689907048 | I154: 0.05098316766 | J154: -5.874196307e-10 | K154: 0.02606391948 | L154: -0.02882906542 | M154: 0.006861367718 | N154: -5.77014829e-10 | O154: 0.008825651039 | P154: -0.009629637193 | Q154: 0.001666572358 | R154: -5.599192211e-10 | S154: 0.004454630902 | T154: -0.004356977872 | U154: 0.3522840187
F155: 0.74 | G155: 0.5570867083 | H155: -0.2696566583 | I155: 0.05412524826 | J155: -3.929056349e-10 | K155: 0.02473042469 | L155: -0.02948933567 | M155: 0.00835684687 | N155: -3.898074634e-10 | O155: 0.00826770634 | P155: -0.01027863252 | Q155: 0.002689140079 | R155: -3.846764162e-10 | S155: 0.00420441726 | T155: -0.004989287945 | U155: 0.3450465761
F156: 0.745 | G156: 0.5488008671 | H156: -0.2700564933 | I156: 0.05714715728 | J156: -1.9684102e-10 | K156: 0.0232444586 | L156: -0.02988785649 | M156: 0.009751391277 | N156: -1.964526009e-10 | O156: 0.007544798699 | P156: -0.01067453379 | Q156: 0.003631621582 | R156: -1.958062571e-10 | S156: 0.003779491666 | T156: -0.005381281591 | U156: 0.3378996205
F157: 0.75 | G157: 0.5403796176 | H157: -0.2701898151 | I157: 0.06004218531 | J157: 4.364728564e-16 | K157: 0.0216151827 | L157: -0.03002109056 | M157: 0.01102815751 | N157: 4.364728564e-16 | O157: 0.006671352065 | P157: -0.0108075926 | Q157: 0.004465948496 | R157: 4.364728569e-16 | S157: 0.00319751164 | T157: -0.005514077858 | U157: 0.3308673792
F158: 0.755 | G158: 0.5318250375 | H158: -0.2700564921 | I158: 0.06280390466 | J158: 1.968418912e-10 | K158: 0.019852642 | L158: -0.02988785531 | M158: 0.01217172467 | N158: 1.96453467e-10 | O158: 0.005664794044 | P158: -0.01067453261 | Q158: 0.005167273442 | R158: 1.958071146e-10 | S158: 0.002482660999 | T158: -0.005381280419 | U158: 0.3239678774
F159: 0.76 | G159: 0.5231392374 | H159: -0.269656656 | I159: 0.06542618364 | J159: 3.929065009e-10 | K159: 0.01796770315 | L159: -0.02948933332 | M159: 0.01316828065 | N159: 3.898083089e-10 | O159: 0.004545208171 | P159: -0.01027863019 | Q159: 0.005714710016 | R159: 3.846772278e-10 | S159: 0.00166464492 | T159: -0.004989285656 | U159: 0.317212064
F160: 0.765 | G160: 0.5143243607 | H160: -0.2689907013 | I160: 0.06790320013 | J160: 5.874204881e-10 | K160: 0.01597198744 | L160: -0.02882906192 | M160: 0.01400578895 | N160: 5.770156407e-10 | O160: 0.00333493319 | P160: -0.009629633778 | Q160: 0.006091954819 | R160: 5.599199581e-10 | S160: 0.000777455554 | T160: -0.004356974579 | U160: 0.3106033109
F161: 0.77 | G161: 0.505382582 | H161: -0.2680592852 | I161: 0.07022945453 | J161: 7.79616195e-10 | K161: 0.01387779911 | L161: -0.02791290172 | M161: 0.01467413409 | N161: 7.551230909e-10 | O161: 0.002058117338 | P161: -0.008743523814 | Q161: 0.006287772993 | R161: 7.153272442e-10 | S161: -0.000142040496 | T161: -0.003514803383 | U161: 0.3041373077
F162: 0.775 | G162: 0.4963161078 | H162: -0.266863327 | I162: 0.07239978197 | J162: 9.687351128e-10 | K162: 0.01169804954 | L162: -0.02674898461 | M162: 0.01516524372 | N162: 9.213217985e-10 | O162: 0.0007402365177 | P162: -0.007642119269 | Q162: 0.006296332807 | R162: 8.453937052e-10 | S162: -0.001055634141 | T162: -0.002503336489 | U162: 0.2978023535
F163: 0.78 | G163: 0.487127175 | H163: -0.2654040069 | I163: 0.07440936378 | J163: 1.154030876e-09 | K163: 0.009446177592 | L163: -0.02534764162 | M163: 0.01547318618 | N163: 1.072990711e-09 | O163: -0.0005924140084 | P163: -0.006352540379 | Q163: 0.006117379339 | R163: 9.455116719e-10 | S163: -0.001925361564 | T163: -0.001371292694 | U163: 0.2915800278
F164: 0.785 | G164: 0.4778180508 | H164: -0.2636827651 | I164: 0.0762537382 | J164: 1.334772206e-09 | K164: 0.00713606682 | L164: -0.02372131116 | M164: 0.01559424212 | N164: 1.207737918e-09 | O164: -0.001913244284 | P164: -0.004906540858 | Q164: 0.005756242064 | R164: 1.012134415e-09 | S164: -0.002715081781 | T164: -0.0001731985601 | U164: 0.2854462018
F165: 0.79 | G165: 0.4683910322 | H165: -0.2617013003 | I165: 0.07792881024 | J165: 1.510245799e-09 | K165: 0.004781959821 | L165: -0.02188442866 | M165: 0.0155269494 | N165: 1.323438376e-09 | O165: -0.003195900199 | P165: -0.003339726014 | Q165: 0.005223676139 | R165: 1.042901791e-09 | S165: -0.003391978458 | T165: 0.001033237938 | U165: 0.2793723361
F166: 0.795 | G166: 0.4588484452 | H166: -0.2594615678 | I166: 0.07943086083 | J166: 1.679759143e-09 | K166: 0.002398370449 | L166: -0.01985329841 | M166: 0.0152721208 | N166: 1.418267419e-09 | O166: -0.004414789324 | P166: -0.001690676029 | Q166: 0.004535542093 | R166: 1.03672385e-09 | S166: -0.003927923573 | T166: 0.002189907004 | U166: 0.2733269953
F167: 0.8 | G167: 0.4491926441 | H167: -0.2569657781 | I167: 0.08075655504 | J167: 1.842643244e-09 | K167: -5.674759779e-09 | L167: -0.01764594888 | M167: 0.01483283416 | N167: 1.490729538e-09 | O167: -0.005545591547 | P167: 4.012660888e-09 | Q167: 0.003712333487 | R167: 9.938194491e-10 | S167: -0.00430064626 | T167: 0.003241095964 | U167: 0.2672775006
F168: 0.805 | G168: 0.4394260114 | H168: -0.2542163941 | I168: 0.08190294949 | J168: 1.998255274e-09 | K168: -0.002398381764 | L168: -0.01528197265 | M168: 0.01421439522 | N168: 1.539681961e-09 | O168: -0.006565744328 | P168: 0.001690683955 | Q168: 0.002778566584 | R168: 9.157084973e-10 | S168: -0.004494658258 | T168: 0.004136172748 | U168: 0.2611916328
F169: 0.81 | G169: 0.429550957 | H169: -0.2512161293 | I169: 0.08286749891 | J169: 2.145981103e-09 | K169: -0.004781971031 | L169: -0.01278235254 | M169: 0.01342427355 | N169: 1.564352678e-09 | O169: -0.00745489288 | P169: 0.003339733646 | Q169: 0.001762050221 | R169: 8.051581146e-10 | S169: -0.004501897518 | T169: 0.00483202466 | U169: 0.2550392992
F170: 0.815 | G170: 0.4195699173 | H170: -0.2479679445 | I170: 0.08364806176 | J170: 2.285237725e-09 | K170: -0.007136077855 | L170: -0.01016927537 | M170: 0.01247201229 | N170: 1.564352619e-09 | O170: -0.008195296301 | P170: 0.004906548009 | Q170: 0.000693057626 | R170: 6.660846034e-10 | S170: -0.004322063219 | T170: 0.005295134964 | U170: 0.2487940792
F171: 0.82 | G171: 0.4094853549 | H171: -0.2444750452 | I171: 0.08424290498 | J171: 2.415475557e-09 | K171: -0.009446188386 | L171: -0.007465934985 | M171: 0.01136911296 | N171: 1.539681783e-09 | O171: -0.008772181555 | P171: 0.006352546872 | Q171: -0.0003965751598 | R171: 5.034147123e-10 | S171: -0.003962628262 | T171: 0.00550319727 | U171: 0.2424345679
F172: 0.825 | G172: 0.3992997582 | H172: -0.2407408786 | I172: 0.08465070788 | J172: 2.536180611e-09 | K172: -0.01169806002 | L172: -0.00469632643 | M172: 0.01012889647 | N172: 1.490729246e-09 | O172: -0.009174038233 | P172: 0.007642124944 | Q172: -0.001474397403 | R172: 3.229111036e-10 | S172: -0.003438528744 | T172: 0.005446189948 | U172: 0.2359454524
F173: 0.83 | G173: 0.3890156403 | H173: -0.2367691298 | I173: 0.08487056504 | J173: 2.646876518e-09 | K173: -0.01387780923 | L173: -0.001885032948 | M173: 0.008766342254 | N173: 1.418267017e-09 | O173: -0.009392848214 | P173: 0.008743528531 | Q173: -0.002508310102 | R173: 1.309682077e-10 | S173: -0.002771543297 | T173: 0.005126858839 | U173: 0.2293182656
F174: 0.835 | G174: 0.3786355385 | H174: -0.2325637184 | I174: 0.08490198831 | J174: 2.747126412e-09 | K174: -0.01597199712 | L174: 0.0009429922198 | M174: 0.007297907375 | N174: 1.323437869e-09 | O174: -0.009424245652 | P174: 0.009629637421 | Q174: -0.003467521945 | R174: -6.561430234e-11 | S174: -0.001989388086 | T174: 0.004560585 | U174: 0.2225517816
F175: 0.84 | G175: 0.3681620142 | H175: -0.2281287948 | I175: 0.08474490793 | J175: 2.836534653e-09 | K175: -0.01796771234 | L175: 0.003762647322 | M175: 0.005741327718 | N175: 1.207737315e-09 | O175: -0.009267604084 | P175: 0.01027863267 | Q175: -0.004323466307 | R175: -2.59872393e-10 | S175: -0.001124565087 | T175: 0.003774643846 | U175: 0.2156520349
F176: 0.845 | G176: 0.3575976513 | H176: -0.2234687355 | I176: 0.08439967266 | J176: 2.914748387e-09 | K176: -0.01985265063 | L176: 0.006548904899 | M176: 0.004115403791 | N176: 1.072990021e-09 | O176: -0.008926048929 | P176: 0.01067453387 | Q176: -0.005050652013 | R176: -4.449243743e-10 | S176: -0.0002130114832 | T176: 0.002806891394 | U176: 0.2086319629
F177: 0.85 | G177: 0.3469450565 | H177: -0.2185881396 | I177: 0.083867049 | J177: 2.981458941e-09 | K177: -0.02161519072 | L177: 0.009277033931 | M177: 0.002439773649 | N177: 9.213210334e-10 | O177: -0.00840639513 | P177: 0.0108075926 | Q177: -0.00562742249 | R177: -6.142146873e-10 | S177: 0.0007073936809 | T177: 0.00170394087 | U177: 0.2015106957
F178: 0.855 | G178: 0.3362068583 | H178: -0.2134918235 | I178: 0.08314821951 | J178: 3.036403038e-09 | K178: -0.02324446598 | L178: 0.01192281935 | M178: 0.0007346757031 | N178: 7.551222622e-10 | O178: -0.007719011176 | P178: 0.01067453253 | Q178: -0.006036600737 | R178: -7.617461382e-10 | S178: 0.001598403539 | T178: 0.0005189175171 | U178: 0.1943125281
F179: 0.86 | G179: 0.325385706 | H179: -0.2081848168 | I179: 0.08224478018 | J179: 3.079363839e-09 | K179: -0.02473043136 | L179: 0.01446277698 | M179: -0.0009792957219 | N179: 5.770147614e-10 | O179: -0.006877612223 | P179: 0.01027863004 | Q179: -0.006266000872 | R179: -8.822923516e-10 | S179: 0.00242299273 | T179: -0.000691100265 | U179: 0.1870656315
F180: 0.865 | G180: 0.3144842697 | H180: -0.2026723568 | I180: 0.08115873686 | J180: 3.110171798e-09 | K180: -0.02606392541 | L180: 0.01687436197 | M180: -0.002681439126 | N180: 3.898073929e-10 | O180: -0.005898986438 | P180: 0.00962963355 | Q180: -0.006308791052 | R180: -9.715829177e-10 | S180: 0.003146895959 | T180: -0.001867830182 | U180: 0.1798005716
F181: 0.87 | G181: 0.3035052391 | H181: -0.1969598837 | I181: 0.07989250085 | J181: 3.128705329e-09 | K181: -0.02723672669 | L181: 0.01913616893 | M181: -0.004351195868 | N181: 1.964525287e-10 | O181: -0.004802660033 | P181: 0.008743523519 | Q181: -0.006163696927 | R181: -1.026454673e-09 | S181: 0.003740031879 | T181: -0.002954593298 | U181: 0.1725487101
F182: 0.875 | G182: 0.2924513231 | H182: -0.1910530349 | I182: 0.0784488835 | J182: 3.134891289e-09 | K182: -0.02824160448 | L182: 0.02122812189 | M182: -0.005968398477 | N182: -5.092183334e-16 | O182: -0.003610507666 | P182: 0.007642118914 | Q182: -0.005835039595 | R182: -1.04496376e-09 | S182: 0.004177753092 | T182: -0.003899044062 | U182: 0.1653405734
F183: 0.88 | G183: 0.2813252492 | H183: -0.1849576399 | I183: 0.07683109 | J183: 3.128705265e-09 | K183: -0.02907236339 | L183: 0.02313165253 | M183: -0.007513514236 | N183: -1.964535392e-10 | O183: -0.002346315975 | P183: 0.006352539974 | Q183: -0.005332606914 | R183: -1.026454483e-09 | S183: 0.004441870366 | T183: -0.004655691609 | U183: 0.158204272
F184: 0.885 | G184: 0.2701297624 | H184: -0.1786797139 | I184: 0.07504271227 | J184: 3.11017167e-09 | K184: -0.0297238815 | L184: 0.02482986498 | M184: -0.008967881097 | N184: -3.898083793e-10 | O184: -0.001035308981 | P184: 0.004906540411 | Q184: -0.004671362009 | R184: -9.715825428e-10 | S184: 0.004521408471 | T184: -0.00518809089 | U184: 0.1511640519
F185: 0.89 | G185: 0.2588676252 | H185: -0.1722254527 | I185: 0.07308772094 | J185: 3.079363649e-09 | K185: -0.030192142 | L185: 0.02630768579 | M185: -0.01031393309 | N185: -5.770157083e-10 | O185: 0.0002963552076 | P185: 0.003339725537 | Q185: -0.003870997643 | R185: -8.822918059e-10 | S185: 0.004413062251 | T185: -0.005470598107 | U185: 0.144239053
F186: 0.895 | G186: 0.2475416162 | H186: -0.1656012257 | I186: 0.0709704566 | J186: 3.036402785e-09 | K186: -0.03047425789 | L186: 0.0275519977 | M186: -0.01153541247 | N186: -7.551231546e-10 | O186: 0.001622106314 | P186: 0.001690675533 | Q186: -0.002955349747 | R186: -7.617454411e-10 | S186: 0.004121333964 | T186: -0.005489605884 | U186: 0.1374423361
F187: 0.9 | G187: 0.23615453 | H187: -0.1588135704 | I187: 0.06869562008 | J187: 2.981458626e-09 | K187: -0.03056848984 | L187: 0.02855175613 | M187: -0.01261756612 | N187: -9.213218574e-10 | O187: 0.002915492044 | P187: -4.514243461e-09 | Q187: -0.00195168755 | R187: -6.142138634e-10 | S187: 0.0036583462 | T187: -0.005244198682 | U187: 0.1307802289
F188: 0.905 | G188: 0.2247091763 | H188: -0.1518691851 | I188: 0.0662682621 | J188: 2.914748012e-09 | K188: -0.03047425689 | L188: 0.02929808714 | M188: -0.01354732366 | N188: -1.072990764e-09 | O188: 0.004150705879 | P188: -0.001690684451 | Q188: -0.0008899014661 | R188: -4.449234528e-10 | S188: 0.003043338128 | T188: -0.004746196902 | U188: 0.1242520224
F189: 0.91 | G189: 0.2132083789 | H189: -0.1447749234 | I189: 0.06369377201 | J189: 2.836534219e-09 | K189: -0.03019214 | L189: 0.02978436625 | M189: -0.01431345543 | N189: -1.207737964e-09 | O189: 0.005303101986 | P189: -0.003339734123 | Q189: 0.0001983870838 | R189: -2.598714065e-10 | S189: 0.002301866027 | T189: -0.004019587536 | U189: 0.1178500332
F190: 0.915 | G190: 0.2016549755 | H190: -0.1375377862 | I190: 0.06097786581 | J190: 2.747125921e-09 | K190: -0.02972387852 | L190: 0.03000627721 | M190: -0.01490670799 | N190: -1.323438415e-09 | O190: 0.006349686969 | P190: -0.004906548456 | Q190: 0.001280767399 | R190: -6.561328591e-11 | S190: 0.001464741311 | T190: -0.003099368797 | U190: 0.1115600256
F191: 0.92 | G191: 0.1900518168 | H191: -0.1301649159 | I191: 0.0581265735 | J191: 2.646875972e-09 | K191: -0.02907235944 | L191: 0.02996185032 | M191: -0.01531991601 | N191: -1.41826745e-09 | O191: 0.007269578647 | P191: -0.006352547278 | Q191: 0.002325004733 | R191: 1.309692181e-10 | S191: 0.0005667501774 | T191: -0.00202986438 | U191: 0.1053619726
F192: 0.925 | G192: 0.1784017657 | H192: -0.1226635885 | I192: 0.05514622565 | J192: 2.536180012e-09 | K192: -0.0282415996 | L192: 0.02965147991 | M192: -0.01554808871 | N192: -1.490729561e-09 | O192: 0.008044422711 | P192: -0.007642125298 | Q192: 0.003300000292 | R192: 3.229120722e-10 | S192: -0.0003547919084 | T192: -0.0008625885467 | U192: 0.09923111305
F193: 0.93 | G193: 0.1667076965 | H193: -0.1150412069 | I193: 0.05204343938 | J193: 2.415474908e-09 | K193: -0.02723672089 | L193: 0.02907792086 | M193: -0.0155884702 | N193: -1.539681974e-09 | O193: 0.008658758942 | P193: -0.008743528826 | Q193: 0.004176717391 | R193: 5.034156048e-10 | S193: -0.001261590836 | T193: 0.0003462351388 | U193: 0.09313925195
F194: 0.935 | G194: 0.1549724948 | H194: -0.1073052936 | I194: 0.04882510367 | J194: 2.285237028e-09 | K194: -0.02606391874 | L194: 0.02824626413 | M194: -0.01544057276 | N194: -1.564352683e-09 | O194: 0.009100329682 | P194: -0.009629637649 | Q194: 0.004929046214 | R194: 6.660853881e-10 | S194: -0.002115965139 | T194: 0.001538381897 | U194: 0.08705623388
F195: 0.94 | G195: 0.1431990559 | H195: -0.09946348289 | I195: 0.04549836401 | J195: 2.145980361e-09 | K195: -0.02473042386 | L195: 0.02716389154 | M195: -0.01510618269 | N195: -1.564352614e-09 | O195: 0.009360324408 | P195: -0.01027863283 | Q195: 0.005534581393 | R195: 8.051587638e-10 | S195: -0.002882411823 | T195: 0.002656430219 | U195: 0.08095151476
F196: 0.945 | G196: 0.1313902848 | H196: -0.09152351373 | I196: 0.0420706066 | J196: 1.998254489e-09 | K196: -0.02324445768 | L196: 0.02584041032 | M196: -0.0145893388 | N196: -1.53968177e-09 | O196: 0.009433555529 | P196: -0.01067453394 | Q196: 0.005975289275 | R196: 9.15708988e-10 | S196: -0.00352908167 | T196: 0.003646527654 | U196: 0.0747957497
F197: 0.95 | G197: 0.1195490951 | H197: -0.0834932219 | I197: 0.03854944192 | J197: 1.84264242e-09 | K197: -0.02161518169 | L197: 0.02428756779 | M197: -0.01389628358 | N197: -1.490729223e-09 | O197: 0.009318561886 | P197: -0.0108075926 | Q197: 0.006238044984 | R197: 9.938197638e-10 | S197: -0.004029102717 | T197: 0.004460984696 | U197: 0.06856231519
F198: 0.955 | G198: 0.1076784084 | H198: -0.07538053235 | I198: 0.03494268783 | J198: 1.679758283e-09 | K198: -0.01985264092 | L198: 0.02251914707 | M198: -0.01303538779 | N198: -1.418266986e-09 | O198: 0.009017637912 | P198: -0.01067453245 | Q198: 0.006315023301 | R198: 1.036723978e-09 | S198: -0.004361696899 | T198: 0.00506057182 | U198: 0.06222868723
F199: 0.96 | G199: =β01*SIN(1*π*F199) -> 0.09578115371 | H199: =β02*SIN(2*π*F199) -> -0.0671934513 | I199: =β03*SIN(3*π*F199) -> 0.03125835224 | J199: =β04*SIN(4*π*F199) -> 1.510244907e-09 | K199: =β05*SIN(5*π*F199) -> -0.01796770201 | L199: =β06*SIN(6*π*F199) -> 0.02055084481 | M199: =β07*SIN(7*π*F199) -> -0.01201704943 | N199: =β08*SIN(8*π*F199) -> -1.32343783e-09 | O199: =β09*SIN(9*π*F199) -> 0.008536787848 | P199: =β10*SIN(10*π*F199) -> -0.01027862988 | Q199: =β11*SIN(11*π*F199) -> 0.006203931708 | R199: =β12*SIN(12*π*F199) -> 1.042901727e-09 | S199: =β13*SIN(13*π*F199) -> -0.00451304347 | T199: =β14*SIN(14*π*F199) -> 0.005416409024 | U199: 0.05577760448
F200: 0.965 | G200: 0.08386026644 | H200: -0.05894005843 | I200: 0.02750461529 | J200: 1.334771284e-09 | K200: -0.01597198623 | L200: 0.01840013179 | M200: -0.01085356807 | N200: -1.207737268e-09 | O200: 0.007885605944 | P200: -0.009629633322 | Q200: 0.005908078662 | R200: 1.012134162e-09 | S200: -0.004476853318 | T200: 0.005511356885 | U200: =SUM(G200:T200) -> 0.04919795678
F201: 0.97 | G201: 0.07191868791 | H201: -0.05062849884 | I201: 0.02368981121 | J201: 1.154029929e-09 | K201: -0.01387779785 | L201: 0.01608609789 | M201: -0.009558996339 | N201: -1.072989968e-09 | O201: 0.007077085027 | P201: -0.008743523224 | Q201: 0.005436275066 | R201: 9.455112383e-10 | S201: -0.004254630302 | T201: 0.005340842099 | U201: 0.04248535367
F202: 0.975 | G202: 0.05995936452 | H202: -0.04226697503 | I202: 0.01982240982 | J202: 9.687341442e-10 | K202: -0.01169804823 | L202: 0.01362928264 | M202: -0.008148970199 | N202: -9.213209746e-10 | O202: 0.006127357261 | P202: -0.007642118559 | Q202: 0.004802571868 | R202: 8.453931066e-10 | S202: -0.003855608762 | T202: 0.004913077761 | U202: 0.03564234399
... 5 more rows

Sheet Στιγμιότυπα
G1: c= | H1: 0.1
G2: t= | H2: 20 | I2: Ο χρόνος να αλλάζει ανά 1s μέχρι τα 20s
H3: 1
C4: Αρμονική | D4: An | F4: x/L | G4: f1 | H4: f2 | I4: f3 | J4: f4 | K4: f5 | L4: f6 | M4: f7 | N4: f8 | O4: f9 | P4: f10 | Q4: f11 | R4: f12 | S4: f13 | T4: f14 | U4: Sum
C5: 1 | D5: =2*k*k*d/(C5*C5*π*π)*SIN(C5*π/k) -> 0.7642122106 | F5: 0 | G5: =β01*SIN(1*π*F5)*COS(1*π*c_*t) -> 0 | H5: =β02*SIN(2*π*F5)*COS(2*π*c_*t) -> 0 | I5: =β03*SIN(3*π*F5)*COS(3*π*c_*t) -> 0 | J5: =β04*SIN(4*π*F5)*COS(4*π*c_*t) -> 0 | K5: =β05*SIN(5*π*F5)*COS(5*π*c_*t) -> 0 | L5: =β06*SIN(6*π*F5)*COS(6*π*c_*t) -> 0 | M5: =β07*SIN(7*π*F5)*COS(7*π*c_*t) -> 0 | N5: =β08*SIN(8*π*F5)*COS(8*π*c_*t) -> 0 | O5: =β09*SIN(9*π*F5)*COS(9*π*c_*t) -> 0 | P5: =β10*SIN(10*π*F5)*COS(10*π*c_*t) -> 0 | Q5: =β11*SIN(11*π*F5)*COS(11*π*c_*t) -> 0 | R5: =β12*SIN(12*π*F5)*COS(12*π*c_*t) -> 0 | S5: =β13*SIN(13*π*F5)*COS(13*π*c_*t) -> 0 | T5: =β14*SIN(14*π*F5)*COS(14*π*c_*t) -> 0 | U5: =SUM(G5:T5) -> 0
C6: 2 | D6: 0.2701898151 | F6: 0.005 | G6: 0.01200372386 | H6: 0.008486867312 | I6: 0.02035883981 | J6: -1.968414556e-10 | K6: -0.002398376106 | L6: -0.002825234238 | M6: -0.00171143457 | N6: 1.96453034e-10 | O6: 0.001329363624 | P6: 0.001690679992 | Q6: 0.00108587026 | R6: -1.958066858e-10 | S6: -0.0009169973438 | T6: -0.001202858835 | U6: =SUM(G6:T6) -> 0.03590044358
C7: 3 | D7: 0.08491246391 | F7: 0.01 | G7: 0.02400448599 | H7: 0.01696535911 | I7: 0.007990968876 | J7: -3.929060679e-10 | K7: -0.004781965426 | L7: -0.005625391497 | M7: -0.003402198279 | N7: 3.898078861e-10 | O7: 0.002632202873 | P7: 0.00333972983 | Q7: 0.002139401839 | R7: -3.84676822e-10 | S7: -0.001795889432 | T7: -0.002347780197 | U7: 0.0391189233
C8: 4 | D8: =2*k*k*d/(C8*C8*π*π)*SIN(C8*π/k) -> -3.134891289e-09 | F8: 0.015 | G8: 0.03599932536 | H8: 0.02542710815 | I8: 0.01196427095 | J8: -5.874200594e-10 | K8: -0.007136072338 | L8: -0.008375617381 | M8: -0.005051869934 | N8: 5.770152349e-10 | O8: 0.003882522608 | P8: 0.004906544434 | Q8: 0.003129219146 | R8: -5.599195896e-10 | S8: -0.002600154447 | T8: -0.003379617256 | U8: 0.05876565872
C9: 5 | D9: -0.03056848984 | F9: 0.02 | G9: 0.04798528244 | H9: 0.0338637637 | I9: 0.01591100934 | J9: -7.796157722e-10 | K9: -0.009446182989 | L9: -0.01105150069 | M9: -0.006640524652 | N9: 7.551227084e-10 | O9: 0.005055375591 | P9: 0.006352543626 | Q9: 0.004025844087 | R9: -7.15326926e-10 | S9: -0.003296371657 | T9: -0.004248670057 | U9: 0.078510568
C10: 6 | D10: -0.03002109056 | F10: 0.025 | G10: 0.05995939987 | H10: 0.0422669998 | I10: 0.01982242132 | J10: -9.687346977e-10 | K10: -0.01169805478 | L10: -0.01362929009 | M10: -0.008148974519 | N10: 9.213214454e-10 | O10: 0.006127360257 | P10: 0.007642122106 | Q10: 0.004802573962 | R10: -8.453934486e-10 | S10: -0.003855610187 | T10: -0.004913079387 | U10: 0.09837586746
C11: 7 | D11: -0.01559616612 | F11: 0.03 | G11: 0.07191872322 | H11: 0.05062852347 | I11: 0.02368982256 | J11: -1.15403047e-09 | K11: -0.01387780417 | L11: -0.01608610495 | M11: -0.009559000343 | N11: 1.072990392e-09 | O11: 0.007077087633 | P11: 0.008743526172 | Q11: 0.005436276707 | R11: -9.45511486e-10 | S11: -0.004254631226 | T11: -0.00534084299 | U11: 0.1183755751
C12: 8 | D12: 1.567445645e-09 | F12: 0.035 | G12: 0.08386030169 | H12: 0.05894008291 | I12: 0.02750462647 | J12: -1.334771811e-09 | K12: -0.01597199228 | L12: -0.0184001384 | M12: -0.01085357171 | N12: 1.207737639e-09 | O12: 0.007885608107 | P12: 0.009629635599 | Q12: 0.005908079802 | R12: -1.012134307e-09 | S12: -0.004476853702 | T12: -0.005511356998 | U12: 0.1385144204
C13: 9 | D13: 0.009434719525 | F13: 0.04 | G13: 0.09578118889 | H13: 0.06719347559 | I13: 0.03125836323 | J13: -1.510245417e-09 | K13: -0.01796770774 | L13: -0.02055085091 | M13: -0.01201705266 | N13: 1.323438142e-09 | O13: 0.008536789526 | P13: 0.01027863143 | Q13: 0.006203932312 | R13: -1.042901764e-09 | S13: -0.004513043298 | T13: -0.005416408353 | U13: 0.1587873168
C14: 10 | D14: 0.0108075926 | F14: 0.045 | G14: 0.1076784435 | H14: 0.07538055643 | I14: 0.03494269861 | J14: -1.679758774e-09 | K14: -0.01985264631 | L14: -0.0225191526 | M14: -0.01303539057 | N14: 1.418267234e-09 | O14: 0.009017639071 | P14: 0.01067453324 | Q14: 0.006315023352 | R14: -1.036723905e-09 | S14: -0.004361696179 | T14: -0.005060570397 | U14: 0.1791794369 | W14: 1
C15: 11 | D15: 0.006315802514 | F15: 0.05 | G15: 0.1195491301 | H15: 0.08349324575 | I15: 0.03854945245 | J15: -1.842642891e-09 | K15: -0.02161518671 | L15: -0.0242875727 | M15: -0.01389628588 | N15: 1.490729403e-09 | O15: 0.009318562503 | P15: 0.0108075926 | Q15: 0.00623804448 | R15: -9.938195839e-10 | S15: -0.004029101479 | T15: -0.00446098259 | U15: 0.1996668972
C16: 12 | D16: -1.04496376e-09 | F16: 0.055 | G16: 0.1313903197 | H16: 0.09152353732 | I16: 0.04207061687 | J16: -1.998254938e-09 | K16: -0.02324446229 | L16: -0.02584041458 | M16: -0.0145893406 | N16: 1.539681879e-09 | O16: 0.009433555591 | P16: 0.01067453316 | Q16: 0.005975288231 | R16: -9.157087076e-10 | S16: -0.003529079965 | T16: -0.003646524966 | U16: 0.2202180271
C17: 13 | D17: -0.004521966373 | F17: 0.06 | G17: 0.1431990907 | H17: 0.09946350621 | I17: 0.04549837399 | J17: -2.145980785e-09 | K17: -0.02473042803 | L17: -0.0271638951 | M17: -0.01510618395 | N17: 1.564352651e-09 | O17: 0.009360323914 | P17: 0.01027863128 | Q17: 0.00553457984 | R17: -8.051583928e-10 | S17: -0.002882409721 | T17: -0.002656427079 | U17: 0.2407951607
C18: 14 | D18: -0.005514077858 | F18: 0.065 | G18: 0.1549725295 | H18: 0.1073053166 | I18: 0.04882511334 | J18: -2.285237426e-09 | K18: -0.02606392245 | L18: -0.02824626696 | M18: -0.01544057347 | N18: 1.564352646e-09 | O18: 0.009100328642 | P18: 0.009629635372 | Q18: 0.004929044198 | R18: -6.660849397e-10 | S18: -0.002115962728 | T18: -0.001538378457 | U18: 0.2613568623
F19: 0.07 | G19: 0.1667077312 | H19: 0.1150412296 | I19: 0.05204344872 | J19: -2.415475279e-09 | K19: -0.02723672411 | L19: -0.02907792294 | M19: -0.01558847036 | N19: 1.539681865e-09 | O19: 0.008658757377 | P19: 0.008743525877 | Q19: 0.004176714972 | R19: -5.034150948e-10 | S19: -0.001261588216 | T19: -0.0003462315632 | U19: 0.2818604692
F20: 0.075 | G20: 0.1784018002 | H20: 0.1226636108 | I20: 0.05514623464 | J20: -2.536180354e-09 | K20: -0.02824160231 | L20: -0.02965148122 | M20: -0.01554808831 | N20: 1.490729381e-09 | O20: 0.008044420652 | P20: 0.007642121752 | Q20: 0.003299997543 | R20: -3.229115187e-10 | S20: -0.0003547891885 | T20: 0.0008625920854 | U20: 0.3022648153
F21: 0.08 | G21: 0.1900518512 | H21: 0.1301649379 | I21: 0.05812658211 | J21: -2.646876284e-09 | K21: -0.02907236163 | L21: -0.02996185084 | M21: -0.01531991506 | N21: 1.418267203e-09 | O21: 0.007269576135 | P21: 0.00635254322 | Q21: 0.002325001736 | R21: -1.309686408e-10 | S21: 0.0005667528841 | T21: 0.002029867712 | U21: 0.322532984
F22: 0.085 | G22: 0.2016550097 | H22: 0.1375378078 | I22: 0.06097787404 | J22: -2.747126202e-09 | K22: -0.02972388018 | L22: -0.03000627694 | M22: -0.0149067065 | N22: 1.323438103e-09 | O22: 0.006349684054 | P22: 0.004906543987 | Q22: 0.001280764241 | R22: 6.561386673e-11 | S22: 0.001464743892 | T22: 0.00309937176 | U22: 0.3426349346
F23: 0.09 | G23: 0.213208413 | H23: 0.1447749445 | I23: 0.06369377983 | J23: -2.836534467e-09 | K23: -0.03019214111 | L23: -0.0297843652 | M23: -0.01431345341 | N23: 1.207737593e-09 | O23: 0.005303098727 | P23: 0.003339729353 | Q23: 0.0001983838611 | R23: 2.598719702e-10 | S23: 0.002301868376 | T23: 0.004019589989 | U23: 0.3625498465 | AA23: 1
F24: 0.095 | G24: 0.2247092102 | H24: 0.1518692059 | I24: 0.0662682695 | J24: -2.914748227e-09 | K24: -0.03047425744 | L24: -0.02929808532 | M24: -0.01354732115 | N24: 1.072990339e-09 | O24: 0.00415070234 | P24: 0.001690679497 | Q24: -0.0008899046582 | R24: 4.449239793e-10 | S24: 0.003043340146 | T24: 0.004746198726 | U24: 0.3822680363
F25: 0.1 | G25: 0.2361545638 | H25: 0.1588135906 | I25: 0.06869562703 | J25: -2.981458806e-09 | K25: -0.03056848984 | L25: -0.02855175355 | M25: -0.01261756314 | N25: 9.213213865e-10 | O25: 0.002915488296 | P25: -5.01582611e-10 | Q25: -0.001951690617 | R25: 6.142143342e-10 | S25: 0.003658347804 | T25: 0.005244199789 | U25: 0.4017923182
F26: 0.105 | G26: 0.2475416497 | H26: 0.1656012456 | I26: 0.07097046309 | J26: -3.03640293e-09 | K26: -0.03047425733 | L26: -0.02755199438 | M26: -0.01153540906 | N26: 7.551226447e-10 | O26: 0.001622102432 | P26: -0.001690680487 | Q26: -0.002955352597 | R26: 7.617458394e-10 | S26: 0.004121335087 | T26: 0.005489606221 | U26: 0.4211387067
F27: 0.11 | G27: 0.2588676585 | H27: 0.172225472 | I27: 0.07308772696 | J27: -3.079363758e-09 | K27: -0.03019214089 | L27: -0.02630768176 | M27: -0.01031392929 | N27: 5.770151672e-10 | O27: 0.0002963512687 | P27: -0.003339730307 | Q27: -0.003871000191 | R27: 8.822921177e-10 | S27: 0.004413062846 | T27: 0.005470597658 | U27: 0.4403363852
F28: 0.115 | G28: 0.2701297956 | H28: 0.1786797328 | I28: 0.0750427178 | J28: -3.110171743e-09 | K28: -0.02972387985 | L28: -0.02482986028 | M28: -0.008967876952 | N28: 3.898078157e-10 | O28: -0.001035312898 | P28: -0.004906544881 | Q28: -0.004671364179 | R28: 9.71582757e-10 | S28: 0.004521408514 | T28: 0.005188089676 | U28: 0.4594269035
F29: 0.12 | G29: 0.2813252821 | H29: 0.1849576581 | I29: 0.07683109504 | J29: -3.128705302e-09 | K29: -0.0290723612 | L29: -0.0231316472 | M29: -0.007513509796 | N29: 1.964529618e-10 | O29: -0.002346319792 | P29: -0.006352544031 | Q29: -0.005332608642 | R29: 1.026454592e-09 | S29: 0.004441869855 | T29: 0.004655689689 | U29: 0.4784626023
F30: 0.125 | G30: 0.2924513559 | H30: 0.1910530527 | I30: 0.07844888802 | J30: -3.134891289e-09 | K30: -0.02824160177 | L30: -0.02122811598 | M30: -0.005968393796 | N30: -7.27454763e-17 | O30: -0.003610511306 | P30: -0.007642122461 | Q30: -0.005835040829 | R30: 1.04496376e-09 | S30: 0.004177752048 | T30: 0.003899041529 | U30: 0.4975043019
F31: 0.13 | G31: 0.3035052717 | H31: 0.1969599009 | I31: 0.07989250485 | J31: -3.128705292e-09 | K31: -0.02723672347 | L31: -0.01913616249 | M31: -0.004351191002 | N31: -1.964531061e-10 | O31: -0.004802663425 | P31: -0.008743526467 | Q31: -0.00616369763 | R31: 1.026454564e-09 | S31: 0.003740030345 | T31: 0.002954590273 | U31: 0.5166183312
F32: 0.135 | G32: 0.3144843021 | H32: 0.2026723734 | I32: 0.08115874034 | J32: -3.110171725e-09 | K32: -0.0260639217 | L32: -0.01687435506 | M32: -0.002681434134 | N32: -3.898079566e-10 | O32: -0.005898989513 | P32: -0.009629635827 | Q32: -0.006308791204 | R32: 9.715827034e-10 | S32: 0.003146894 | T32: 0.001867826811 | U32: 0.5358730067
F33: 0.14 | G33: 0.3253857381 | H33: 0.2081848328 | I33: 0.08224478312 | J33: -3.07936373e-09 | K33: -0.02473042719 | L33: -0.01446276965 | M33: -0.0009792906651 | N33: -5.770153025e-10 | O33: -0.00687761492 | P33: -0.01027863159 | Q33: -0.006266000468 | R33: 8.822920398e-10 | S33: 0.002422990426 | T33: 0.0006910967105 | U33: 0.5553347039
F34: 0.145 | G34: 0.3362068902 | H34: 0.2134918389 | I34: 0.08314822191 | J34: -3.036402894e-09 | K34: -0.02324446137 | L34: -0.01192281168 | M34: 0.0007346807643 | N34: -7.551227722e-10 | O34: -0.007719013442 | P34: -0.01067453332 | Q34: -0.006036599788 | R34: 7.617457398e-10 | S34: 0.001598400987 | T34: -0.000518921084 | U34: 0.575063689
F35: 0.15 | G35: 0.3469450881 | H35: 0.2185881543 | I35: 0.08386705085 | J35: -2.981458761e-09 | K35: -0.02161518571 | L35: -0.009277025981 | M35: 0.002439778654 | N35: -9.213215042e-10 | O35: -0.008406396919 | P35: -0.0108075926 | Q35: -0.005627421026 | R35: 6.142142165e-10 | S35: 0.0007073909863 | T35: -0.001703944278 | U35: 0.5951098931
F36: 0.155 | G36: 0.3575976826 | H36: 0.2234687496 | I36: 0.08439967396 | J36: -2.914748173e-09 | K36: -0.01985264523 | L36: -0.006548896741 | M36: 0.004115408678 | N36: -1.072990445e-09 | O36: -0.008926050205 | P36: -0.01067453308 | Q36: -0.005050650077 | R36: 4.449238477e-10 | S36: -0.0002130142085 | T36: -0.002806894478 | U36: 0.6155088273
F37: 0.16 | G37: 0.3681620452 | H37: 0.2281288082 | I37: 0.08474490867 | J37: -2.836534405e-09 | K37: -0.0179677066 | L37: -0.003762639028 | M37: 0.005741332429 | N37: -1.207737686e-09 | O37: -0.009267604822 | P37: -0.01027863112 | Q37: -0.004323463957 | R37: 2.598718293e-10 | S37: -0.00112456773 | T37: -0.003774646458 | U37: 0.636277831
F38: 0.165 | G38: 0.3786355694 | H38: 0.2325637312 | I38: 0.0849019885 | J38: -2.747126132e-09 | K38: -0.01597199107 | L38: -0.0009429838643 | M38: 0.007297911853 | N38: -1.323438181e-09 | O38: -0.009424245838 | P38: -0.009629635144 | Q38: -0.00346751925 | R38: 6.561372153e-11 | S38: -0.001989390536 | T38: -0.004560587014 | U38: 0.6574128442
F39: 0.17 | G39: 0.3890156708 | H39: 0.2367691419 | I39: 0.08487056467 | J39: -2.646876206e-09 | K39: -0.01387780291 | L39: 0.001885041292 | M39: 0.008766346444 | N39: -1.418267265e-09 | O39: -0.009392847843 | P39: -0.008743525583 | Q39: -0.002508307143 | R39: -1.309687851e-10 | S39: -0.002771545453 | T39: -0.005126860158 | U39: 0.6788858718
F40: 0.175 | G40: 0.3992997885 | H40: 0.24074089 | I40: 0.08465070696 | J40: -2.536180268e-09 | K40: -0.01169805347 | L40: 0.004696334687 | M40: 0.01012890032 | N40: -1.490729426e-09 | O40: -0.009174037313 | P40: -0.007642121397 | Q40: -0.001474394267 | R40: -3.229116571e-10 | S40: -0.003438530516 | T40: -0.005446190508 | U40: 0.7006432886
F41: 0.18 | G41: 0.4094853849 | H41: 0.2444750559 | I41: 0.0842429035 | J41: -2.415475186e-09 | K41: -0.00944618164 | L41: 0.007465943082 | M41: 0.01136911643 | N41: -1.539681892e-09 | O41: -0.008772180105 | P41: -0.006352542814 | Q41: -0.0003965719419 | R41: -5.034152223e-10 | S41: -0.003962629576 | T41: -0.005503197045 | U41: 0.7226050962
F42: 0.185 | G42: 0.4195699469 | H42: 0.2479679544 | I42: 0.08364805972 | J42: -2.285237326e-09 | K42: -0.007136070958 | L42: 0.01016928324 | M42: 0.01247201534 | N42: -1.564352655e-09 | O42: -0.008195294348 | P42: -0.00490654354 | Q42: 0.0006930608308 | R42: -6.660850518e-10 | S42: -0.004322064021 | T42: -0.005295133965 | U42: 0.7446652091
F43: 0.19 | G43: 0.4295509863 | H43: 0.2512161385 | I43: 0.08286749633 | J43: -2.145980679e-09 | K43: -0.004781964025 | L43: 0.01278236011 | M43: 0.01342427613 | N43: -1.564352642e-09 | O43: -0.007454890464 | P43: -0.003339728876 | Q43: 0.001762053317 | R43: -8.051584855e-10 | S43: -0.004501897775 | T43: -0.004832022934 | U43: 0.7666928021
F44: 0.195 | G44: 0.4394260404 | H44: 0.2542164026 | I44: 0.08190294637 | J44: -1.998254825e-09 | K44: -0.002398374692 | L44: 0.01528197985 | M44: 0.01421439731 | N44: -1.539681852e-09 | O44: -0.006565741498 | P44: -0.001690679001 | Q44: 0.00277856948 | R44: -9.157087777e-10 | S44: -0.004494657958 | T44: -0.004136170378 | U44: 0.7885347081
F45: 0.2 | G45: 0.4491926728 | H45: 0.2569657858 | I45: 0.08075655138 | J45: -1.842642773e-09 | K45: 1.418689945e-09 | L45: 0.01764595564 | M45: 0.01483283573 | N45: -1.490729358e-09 | O45: -0.005545588359 | P45: 1.003165222e-09 | Q45: 0.003712336096 | R45: -9.938196289e-10 | S45: -0.004300645417 | T45: -0.003241093065 | U45: 0.8100188087
F46: 0.205 | G46: 0.4588484735 | H46: 0.2594615748 | I46: 0.07943085665 | J46: -1.679758651e-09 | K46: 0.002398377521 | L46: 0.01985330468 | M46: 0.01527212183 | N46: -1.418267172e-09 | O46: -0.004414785841 | P46: 0.001690680983 | Q46: 0.004535544337 | R46: -1.036723923e-09 | S46: -0.003927922222 | T46: -0.002189903716 | U46: 0.8309583184
F47: 0.21 | G47: 0.4683910603 | H47: 0.2617013065 | I47: 0.07792880554 | J47: -1.510245289e-09 | K47: 0.004781966827 | L47: 0.02188443438 | M47: 0.01552694988 | N47: -1.323438064e-09 | O47: -0.003195896491 | P47: 0.003339730784 | Q47: 0.005223677951 | R47: -1.042901755e-09 | S47: -0.003391976654 | T47: -0.001033234419 | U47: 0.8511568207
F48: 0.215 | G48: 0.4778180785 | H48: 0.2636827706 | I48: 0.076253733 | J48: -1.334771679e-09 | K48: 0.007136073717 | L48: 0.02372131629 | M48: 0.01559424204 | N48: -1.207737547e-09 | O48: -0.001913240425 | P48: 0.004906545327 | Q48: 0.005756243391 | R48: -1.012134271e-09 | S48: -0.002715079599 | T48: 0.0001732021411 | U48: 0.8704138814
F49: 0.22 | G49: 0.4871272023 | H49: 0.2654040116 | I49: 0.07440935809 | J49: -1.154030334e-09 | K49: 0.009446184338 | L49: 0.0253476461 | M49: 0.01547318555 | N49: -1.072990286e-09 | O49: -0.0005924100753 | P49: 0.006352544437 | Q49: 0.006117380141 | R49: -9.455114241e-10 | S49: -0.001925359096 | T49: 0.001371296164 | U49: 0.8885310364
F50: 0.225 | G50: 0.4963161348 | H50: 0.266863331 | I50: 0.07239977579 | J50: -9.687345593e-10 | K50: 0.01169805609 | L50: 0.02674898841 | M50: 0.01516524254 | N50: -9.213213277e-10 | O50: 0.0007402404464 | P50: 0.007642122816 | Q50: 0.00629633306 | R50: -8.453933631e-10 | S50: -0.001055631488 | T50: 0.002503339681 | U50: 0.9053179303
F51: 0.23 | G51: 0.5053826086 | H51: 0.2680592884 | I51: 0.07022944788 | J51: -7.796156313e-10 | K51: 0.01387780543 | L51: 0.02791290479 | M51: 0.01467413237 | N51: -7.551225809e-10 | O51: 0.002058121183 | P51: 0.008743526762 | Q51: 0.006287772689 | R51: -7.153268199e-10 | S51: -0.0001420377691 | T51: 0.003514806143 | U51: 0.9205983743
F52: 0.235 | G52: 0.5143243869 | H52: 0.2689907037 | I52: 0.06790319303 | J52: -5.874199165e-10 | K52: 0.01597199349 | L52: 0.02882906425 | M52: 0.01400578672 | N52: -5.770150996e-10 | O52: 0.003334936877 | P52: 0.009629636055 | Q52: 0.006091953969 | R52: -5.599194667e-10 | S52: 0.0007774582416 | T52: 0.004356976775 | U52: 0.9342160882
F53: 0.24 | G53: 0.5231392633 | H53: 0.2696566576 | I53: 0.06542617611 | J53: -3.929059236e-10 | K53: 0.01796770889 | L53: 0.02948933489 | M53: 0.01316827793 | N53: -3.898077452e-10 | O53: 0.004545211624 | P53: 0.01027863174 | Q53: 0.005714708643 | R53: -3.846766867e-10 | S53: 0.001664647457 | T53: 0.004989287182 | U53: 0.9460399042
F54: 0.245 | G54: 0.5318250629 | H54: 0.2700564929 | I54: 0.06280389671 | J54: -1.968413104e-10 | K54: 0.01985264739 | L54: 0.02988785609 | M54: 0.0121717215 | N54: -1.964528896e-10 | O54: 0.005664797195 | P54: 0.0106745334 | Q54: 0.005167271588 | R54: -1.958065429e-10 | S54: 0.00248266328 | T54: 0.0053812812 | U54: 0.9559682236
F55: 0.25 | G55: 0.5403796427 | H55: 0.2701898151 | I55: 0.06004217695 | J55: 1.454909526e-16 | K55: 0.02161518771 | L55: 0.03002109056 | M55: 0.01102815393 | N55: 1.454909526e-16 | O55: 0.006671354852 | P55: 0.0108075926 | Q55: 0.004465946216 | R55: 1.454909517e-16 | S55: 0.003197513569 | T55: 0.005514077858 | U55: 0.963932552
F56: 0.255 | G56: 0.5488008918 | H56: 0.2700564925 | I56: 0.05714714853 | J56: 1.968416008e-10 | K56: 0.02324446321 | L56: 0.0298878557 | M56: 0.009751387323 | N56: 1.964531783e-10 | O56: 0.007544801065 | P56: 0.010674533 | Q56: 0.003631618944 | R56: 1.958068288e-10 | S56: 0.003779493164 | T56: 0.005381280809 | U56: 0.9698999667
F57: 0.26 | G57: 0.5570867325 | H57: 0.2696566568 | I57: 0.05412523915 | J57: 3.929062122e-10 | K57: 0.02473042886 | L57: 0.02948933411 | M57: 0.008356842592 | N57: 3.89808027e-10 | O57: 0.008267708238 | P57: 0.01027863097 | Q57: 0.002689137162 | R57: 3.846769573e-10 | S57: 0.004204418265 | T57: 0.004989286419 | U57: 0.9738744162
F58: 0.265 | G58: 0.5652351205 | H58: 0.2689907025 | I58: 0.05098315821 | J58: 5.874202023e-10 | K58: 0.02606392319 | L58: 0.02882906309 | M58: 0.006861363168 | N58: 5.770153701e-10 | O58: 0.008825652432 | P58: 0.009629634916 | Q58: 0.001666569248 | R58: 5.599197124e-10 | S58: 0.004454631371 | T58: 0.004356975677 | U58: 0.975896796
F59: 0.27 | G59: 0.5732440451 | H59: 0.2680592868 | I59: 0.04772788189 | J59: 7.796159131e-10 | K59: 0.02723672475 | L59: 0.02791290325 | M59: 0.005283011587 | N59: 7.551228359e-10 | O59: 0.009207501161 | P59: 0.008743525288 | Q59: 0.0005943686552 | R59: 7.15327032e-10 | S59: 0.004519735032 | T59: 0.003514804763 | U59: 0.9760437905
F60: 0.275 | G60: 0.5811115303 | H60: 0.266863329 | I60: 0.04436663775 | J60: 9.68734836e-10 | K60: 0.02824160285 | L60: 0.02674898651 | M60: 0.003640851319 | N60: 9.213215631e-10 | O60: 0.009405635519 | P60: 0.007642121042 | Q60: -0.000495533038 | R60: 8.453935342e-10 | S60: 0.004397023907 | T60: 0.002503338085 | U60: 0.974425526
F61: 0.28 | G61: 0.5888356349 | H61: 0.2654040093 | I61: 0.04090688856 | J61: 1.154030605e-09 | K61: 0.02907236207 | L61: 0.02534764386 | M61: 0.001954716523 | N61: 1.072990498e-09 | O61: 0.009416102192 | P61: 0.006352542408 | Q61: -0.001570677089 | R61: 9.45511548e-10 | S61: 0.004091597179 | T61: 0.001371294429 | U61: 0.9711821175
F62: 0.285 | G62: 0.5964144531 | H62: 0.2636827679 | I62: 0.03735631586 | J62: 1.334771942e-09 | K62: 0.02972388051 | L62: 0.02372131372 | M62: 0.0002449724862 | N62: 1.207737732e-09 | O62: 0.009238692343 | P62: 0.004906543093 | Q62: -0.002599044258 | R62: 1.012134343e-09 | S62: 0.003616146668 | T62: 0.0001732003506 | U62: 0.9664792453
F63: 0.29 | G63: 0.603846115 | H63: 0.2617013034 | I63: 0.03372280278 | J63: 1.510245544e-09 | K63: 0.03019214133 | L63: 0.02188443152 | M63: -0.00146773035 | N63: 1.32343822e-09 | O63: 0.008876945775 | P63: 0.003339728399 | Q63: -0.003550008384 | R63: 1.042901773e-09 | S63: 0.002990429424 | T63: -0.001033236178 | U63: 0.9605029266
F64: 0.295 | G64: 0.6111287869 | H64: 0.2594615713 | I64: 0.03001441665 | J64: 1.679758897e-09 | K64: 0.03047425756 | L64: 0.01985330155 | M64: -0.003162705808 | N64: 1.418267296e-09 | O64: 0.008338080302 | P64: 0.001690678506 | Q64: -0.004395248473 | R64: 1.036723887e-09 | S64: 0.002240446739 | T64: -0.00218990536 | U64: 0.953453684
F65: 0.3 | G65: 0.618260672 | H65: 0.2569657819 | I65: 0.02623939101 | J65: 1.842643008e-09 | K65: 0.03056848984 | L65: 0.01764595226 | M65: -0.004819481823 | N65: 1.490729448e-09 | O65: 0.007632847738 | P65: -1.504747814e-09 | Q65: -0.005109592136 | R65: 9.93819539e-10 | S65: 0.001397363679 | T65: -0.003241094515 | U65: 0.9455403328
F66: 0.305 | G66: 0.6252400104 | H66: 0.2542163984 | I66: 0.02240610735 | J66: 1.99825505e-09 | K66: 0.03047425722 | L66: 0.01528197625 | M66: -0.006418047704 | N66: 1.539681906e-09 | O66: 0.006775319367 | P66: -0.001690681478 | Q66: -0.005671765253 | R66: 9.157086375e-10 | S66: 0.0004962140376 | T66: -0.004136171563 | U66: 0.9369736214
F67: 0.31 | G67: 0.6320650802 | H67: 0.2512161339 | I67: 0.01852307653 | J67: 2.145980891e-09 | K67: 0.03019214066 | L67: 0.01278235633 | M67: -0.007939095832 | N67: 1.56435266e-09 | O67: 0.005782605181 | P67: -0.003339731261 | Q67: -0.006065025553 | R67: 8.051583001e-10 | S67: -0.0004255554702 | T67: -0.004832023797 | U67: 0.9279599654
F68: 0.315 | G68: 0.6387341974 | H68: 0.2479679494 | I68: 0.01459891985 | J68: 2.285237526e-09 | K68: 0.02972387951 | L68: 0.0101692793 | M68: -0.00936425485 | N68: 1.564352637e-09 | O68: 0.004674512495 | P68: -0.004906545774 | Q68: -0.006277661213 | R68: 6.660848276e-10 | S68: -0.001329641284 | T68: -0.005295134465 | U68: 0.918695505
F69: 0.32 | G69: =β01*SIN(1*π*F69)*COS(1*π*c_*t) -> 0.6452457165 | H69: =β02*SIN(2*π*F69)*COS(2*π*c_*t) -> 0.2444750506 | I69: =β03*SIN(3*π*F69)*COS(3*π*c_*t) -> 0.01064234992 | J69: =β04*SIN(4*π*F69)*COS(4*π*c_*t) -> 2.415475372e-09 | K69: =β05*SIN(5*π*F69)*COS(5*π*c_*t) -> 0.02907236076 | L69: =β06*SIN(6*π*F69)*COS(6*π*c_*t) -> 0.007465939034 | M69: =β07*SIN(7*π*F69)*COS(7*π*c_*t) -> -0.01067631156 | N69: =β08*SIN(8*π*F69)*COS(8*π*c_*t) -> 1.539681838e-09 | O69: =β09*SIN(9*π*F69)*COS(9*π*c_*t) -> 0.003473150732 | P69: =β10*SIN(10*π*F69)*COS(10*π*c_*t) -> -0.006352544843 | Q69: =β11*SIN(11*π*F69)*COS(11*π*c_*t) -> -0.006303339656 | R69: =β12*SIN(12*π*F69)*COS(12*π*c_*t) -> 5.034149673e-10 | S69: =β13*SIN(13*π*F69)*COS(13*π*c_*t) -> -0.002178474679 | T69: =β14*SIN(14*π*F69)*COS(14*π*c_*t) -> -0.005503197157 | U69: 0.9093607041
F70: 0.325 | G70: 0.6515980309 | H70: 0.2407408843 | I70: 0.006662151304 | J70: 2.53618044e-09 | K70: 0.02824160122 | L70: 0.004696330559 | M70: -0.01185941882 | N70: 1.490729336e-09 | O70: 0.002202490287 | P70: -0.00764212317 | Q70: -0.006141296143 | R70: 3.229113804e-10 | S70: -0.00293678291 | T70: -0.005446190228 | U70: =SUM(G70:T70) -> 0.9001156816
F71: 0.33 | G71: 0.6577895732 | H71: 0.2367691358 | I71: 0.002667161047 | J71: 2.646876362e-09 | K71: 0.02723672282 | L71: 0.00188503712 | M71: -0.01289928697 | N71: 1.418267141e-09 | O71: 0.0008878842465 | P71: -0.008743527057 | Q71: -0.00579635655 | R71: 1.309684964e-10 | S71: -0.003573054947 | T71: -0.005126859499 | U71: 0.8910964334
F72: 0.335 | G72: 0.6638188158 | H72: 0.2325637248 | I72: -0.001333750974 | J72: 2.747126272e-09 | K72: 0.02606392096 | L72: -0.000942988042 | M72: -0.01378335637 | N72: 1.323438025e-09 | O72: -0.000444437469 | P72: -0.009629636282 | Q72: -0.005278793641 | R72: -6.561401193e-11 | S72: -0.004060850902 | T72: -0.004560586007 | U72: 0.8824120658
F73: 0.34 | G73: 0.6696842709 | H73: 0.2281288015 | I73: -0.005331701735 | J73: 2.836534529e-09 | K73: 0.02473042636 | L73: -0.003762643175 | M73: -0.01450094916 | N73: 1.2077375e-09 | O73: -0.001767891464 | P73: -0.0102786319 | Q73: -0.004604021139 | R73: -2.598721111e-10 | S73: -0.004379900715 | T73: -0.003774645152 | U73: 0.8741431181
F74: 0.345 | G74: 0.6753844916 | H74: 0.2234687425 | I74: -0.009317814784 | J74: 2.91474828e-09 | K74: 0.02324446045 | L74: -0.00654890082 | M74: -0.01504339819 | N74: 1.072990233e-09 | O74: -0.003056071276 | P74: -0.01067453347 | Q74: -0.003792134679 | R74: -4.44924111e-10 | S74: -0.004516946469 | T74: -0.002806892936 | U74: 0.8663410055
F75: 0.35 | G75: 0.6809180712 | H75: 0.2185881469 | I75: -0.01328323995 | J75: 2.981458851e-09 | K75: 0.0216151847 | L75: -0.009277029956 | M75: -0.01540415171 | N75: 9.213212688e-10 | O75: -0.004283274261 | P75: -0.0108075926 | Q75: -0.002867313334 | R75: -6.142144519e-10 | S75: -0.004466293314 | T75: -0.001703942574 | U75: 0.8590285684
F76: 0.355 | G76: 0.6862836444 | H76: 0.2134918312 | I76: -0.01721917301 | J76: 3.036402966e-09 | K76: 0.01985264415 | L76: -0.01192281552 | M76: -0.01557885251 | N76: 7.551225172e-10 | O76: -0.005425014423 | P76: -0.01067453292 | Q76: -0.001857099531 | R76: -7.61745939e-10 | S76: -0.004230046109 | T76: -0.0005189193005 | U76: 0.8522016695
F77: 0.36 | G77: 0.6914798874 | H77: 0.2081848248 | I77: -0.02111687519 | J77: 3.079363785e-09 | K77: 0.01796770545 | L77: -0.01446277332 | M77: -0.01556539053 | N77: 5.77015032e-10 | O77: -0.006458510981 | P77: -0.01027863081 | Q77: -0.0007915788001 | R77: -8.822921957e-10 | S77: -0.003818021961 | T77: 0.0006910984877 | U77: 0.8458317374
F78: 0.365 | G78: 0.6965055181 | H78: 0.2026723651 | I78: -0.02496769263 | J78: 3.110171762e-09 | K78: 0.01597198986 | L78: -0.01687435851 | M78: -0.01536392838 | N78: 3.898076747e-10 | O78: -0.007363142902 | P78: -0.009629634688 | Q78: 0.0002975162154 | R78: -9.715828106e-10 | S78: -0.003247342277 | T78: 0.001867828496 | U78: 0.839869121
F79: 0.37 | G79: 0.7013592965 | H79: 0.1969598923 | I79: -0.02876307554 | J79: 3.128705311e-09 | K79: 0.01387780164 | L79: -0.01913616571 | M79: -0.01497689932 | N79: 1.964528174e-10 | O79: -0.008120860351 | P79: -0.008743524993 | Q79: 0.001377750797 | R79: -1.026454619e-09 | S79: -0.002541721299 | T79: 0.002954591785 | U79: 0.8342470881
F80: 0.375 | G80: 0.706040025 | H80: 0.1910530438 | I80: -0.03249459723 | J80: 3.134891289e-09 | K80: 0.01169805216 | L80: -0.02122811893 | M80: -0.01440897793 | N80: -2.182364282e-16 | O80: -0.00871654483 | P80: -0.007642120688 | Q80: 0.002416954101 | R80: -1.04496376e-09 | S80: -0.001730480667 | T80: 0.003899042796 | U80: 0.8288862796
F81: 0.38 | G81: 0.7105465486 | H81: 0.184957649 | I81: -0.03615397279 | J81: 3.128705283e-09 | K81: 0.00944618029 | L81: -0.02313164987 | M81: -0.01366702362 | N81: -1.964532505e-10 | O81: -0.009138310835 | P81: -0.006352542003 | Q81: 0.003384177253 | R81: -1.026454537e-09 | S81: -0.0008473309851 | T81: 0.004655690649 | U81: 0.8236994176
F82: 0.385 | G82: 0.7148777555 | H82: 0.1786797233 | I82: -0.03973307749 | J82: 3.110171707e-09 | K82: 0.007136069579 | L82: -0.02482986263 | M82: -0.01275999778 | N82: -3.898080975e-10 | O82: -0.009377743 | P82: -0.004906542646 | Q82: 0.004250615043 | R82: -9.715826499e-10 | S82: 7.102901094e-05 | T82: 0.005188090283 | U82: 0.818596061
F83: 0.39 | G83: 0.7190325771 | H83: 0.1722254624 | I83: -0.04322396481 | J83: 3.079363703e-09 | K83: 0.004781962623 | L83: -0.02630768377 | M83: -0.01169885554 | N83: -5.770154378e-10 | O83: -0.009430064013 | P83: -0.003339727922 | Q83: 0.004990463784 | R83: -8.822919618e-10 | S83: 0.0009864374405 | T83: 0.005470597883 | U83: 0.8134872067
F84: 0.395 | G84: 0.723009988 | H84: 0.1656012357 | I84: -0.04661888412 | J84: 3.036402857e-09 | K84: 0.002398373278 | L84: -0.02755199604 | M84: -0.01049641348 | N84: -7.551228996e-10 | O84: -0.009294229926 | P84: -0.00169067801 | Q84: 0.005581689784 | R84: -7.617456402e-10 | S84: 0.001860855074 | T84: 0.005489606053 | U84: 0.8082895478
F85: 0.4 | G85: 0.7268090071 | H85: 0.1588135805 | I85: -0.04991029785 | J85: 2.981458716e-09 | K85: -2.837379889e-09 | L85: -0.02855175484 | M85: -0.009167194796 | N85: -9.213216219e-10 | O85: -0.008972950997 | P85: 2.006330444e-09 | Q85: 0.006006685535 | R85: -6.142140988e-10 | S85: 0.002657946028 | T85: 0.005244199236 | U85: 0.8029292206
F86: 0.405 | G86: 0.730428697 | H86: 0.1518691955 | I86: -0.05309089823 | J86: 2.91474812e-09 | K86: -0.002398378935 | L86: -0.02929808623 | M86: -0.007727253914 | N86: -1.072990551e-09 | O86: -0.008472637601 | P86: 0.001690681974 | Q86: 0.006252794091 | R86: -4.44923716e-10 | S86: 0.003344587683 | T86: 0.004746197814 | U86: 0.7973449005
F87: 0.41 | G87: 0.7338681644 | H87: 0.144774934 | I87: -0.05615362353 | J87: 2.836534343e-09 | K87: -0.004781968228 | L87: -0.02978436573 | M87: -0.006193982568 | N87: -1.207737779e-09 | O87: -0.007803272335 | P87: 0.003339731738 | Q87: 0.006312686005 | R87: -2.598716884e-10 | S87: 0.003892247071 | T87: 0.004019588762 | U87: 0.791490141
F88: 0.415 | G88: 0.7371265609 | H88: 0.137537797 | I88: -0.05909167375 | J88: 2.747126061e-09 | K88: -0.007136075097 | L88: -0.03000627708 | M88: -0.004585899747 | N88: -1.323438259e-09 | O88: -0.006978210833 | P88: 0.004906546221 | Q88: 0.006184577618 | R88: -6.561357632e-11 | S88: 0.004278166545 | T88: 0.003099370279 | U88: 0.7853348835
F89: 0.42 | G89: 0.7402030824 | H89: 0.1301649269 | I89: -0.06189852566 | J89: 2.646876128e-09 | K89: -0.009446185687 | L89: -0.02996185058 | M89: -0.002922428019 | N89: -1.418267327e-09 | O89: -0.006013915287 | P89: 0.006352545249 | Q89: 0.005872284169 | R89: 1.309689295e-10 | S89: 0.004486309461 | T89: 0.002029866046 | U89: 0.7788661104
F90: 0.425 | G90: 0.7430969699 | H90: 0.1226635997 | I90: -0.06456794737 | J90: 2.536180183e-09 | K90: -0.0116980574 | L90: -0.02965148056 | M90: -0.001223658944 | N90: -1.490729471e-09 | O90: -0.004929625982 | P90: 0.007642123525 | Q90: 0.005385106178 | R90: 3.229117955e-10 | S90: 0.004508026569 | T90: 0.0008625903161 | U90: 0.7720876473
F91: 0.43 | G91: 0.7458075094 | H91: 0.1150412183 | I91: -0.06709401208 | J91: 2.415475093e-09 | K91: -0.0138778067 | L91: -0.0290779219 | M91: 0.000489889594 | N91: -1.53968192e-09 | O91: -0.003746977403 | P91: 0.008743527351 | Q91: 0.004737552463 | R91: 5.034153498e-10 | S91: 0.004342415427 | T91: -0.000346233351 | U91: 0.7650191624
F92: 0.435 | G92: 0.7483340319 | H92: 0.1073053051 | I92: -0.06947111131 | J92: 2.285237227e-09 | K92: -0.0159719947 | L92: -0.02824626554 | M92: 0.002197521201 | N92: -1.564352664e-09 | O92: -0.002489566563 | P92: 0.00962963651 | Q92: 0.003948908046 | R92: 6.660851639e-10 | S92: 0.003996357905 | T92: -0.001538380177 | U92: 0.7576944438
F93: 0.44 | G93: 0.7506759143 | H93: 0.09946349455 | I93: -0.07169396729 | J93: 2.145980573e-09 | K93: -0.01796771004 | L93: -0.02716389332 | M93: 0.003878610951 | N93: -1.564352633e-09 | O93: -0.001182482186 | P93: 0.01027863205 | Q93: 0.003042659823 | R93: 8.051585783e-10 | S93: 0.003484234209 | T93: -0.002656428649 | U93: 0.7501590658
F94: 0.445 | G94: 0.7528325786 | H94: 0.09152352553 | I94: -0.07375764472 | J94: 1.998254713e-09 | K94: -0.01985264847 | L94: -0.02584041245 | M94: 0.005512854491 | N94: -1.539681824e-09 | O94: 0.0001481958868 | P94: 0.01067453355 | Q94: 0.002045797087 | R94: 9.157088478e-10 | S94: 0.002827325319 | T94: -0.00364652631 | U94: 0.7424675798
F95: 0.45 | G95: 0.7548034927 | H95: 0.08349323383 | I95: -0.07565756174 | J95: 1.842642655e-09 | K95: -0.02161518872 | L95: -0.02428757024 | M95: 0.007080513281 | N95: -1.490729313e-09 | O95: 0.001475917053 | P95: 0.0108075926 | Q95: 0.0009880077545 | R95: 9.938196739e-10 | S95: 0.00205292868 | T95: -0.004460983643 | U95: 0.7346803829
F96: 0.455 | G96: 0.7565881703 | H96: 0.07538054439 | I96: -0.07738950004 | J96: 1.679758528e-09 | K96: -0.02324446413 | L96: -0.02251914984 | M96: 0.008562652998 | N96: -1.41826711e-09 | O96: 0.002774189712 | P96: 0.01067453285 | Q96: -9.920578104e-05 | R96: 1.036723942e-09 | S96: 0.001193223861 | T96: -0.005060571108 | U96: 0.7268604245
F97: 0.46 | G97: 0.7581861711 | H97: 0.06719346345 | I97: -0.0789496143 | J97: 1.510245162e-09 | K97: -0.02473042969 | L97: -0.02055084786 | M97: 0.009941372226 | N97: -1.323437986e-09 | O97: 0.004017109836 | P97: 0.01027863066 | Q97: -0.001183464835 | R97: 1.042901746e-09 | S97: 0.0002839353653 | T97: -0.005416408689 | U97: 0.7190699185
F98: 0.465 | G98: 0.7595971009 | H98: 0.05894007067 | I98: -0.08033444066 | J98: 1.334771547e-09 | K98: -0.02606392393 | L98: -0.01840013509 | M98: 0.01120001867 | N98: -1.207737454e-09 | O98: 0.005179877832 | P98: 0.009629634461 | Q98: -0.00223247871 | R98: 1.012134234e-09 | S98: -0.0006371518887 | T98: -0.005511356942 | U98: 0.7113672164
F99: 0.47 | G99: 0.7608206113 | H99: 0.05062851116 | I99: -0.08154090447 | J99: 1.154030199e-09 | K99: -0.0272367254 | L99: -0.01608610142 | M99: 0.01232339029 | N99: -1.07299018e-09 | O99: 0.006239293357 | P99: 0.008743524698 | Q99: -0.003215006358 | R99: 9.455113621e-10 | S99: -0.001531762691 | T99: -0.005340842544 | U99: 0.703803989
F100: 0.475 | G100: 0.7618564007 | H100: 0.04226698741 | I100: -0.08256632708 | J100: 9.687344209e-10 | K100: -0.0282416034 | L100: -0.01362928637 | M100: 0.0132979189 | N100: -9.2132121e-10 | O100: 0.007174218227 | P100: 0.007642120333 | Q100: -0.004101786781 | R100: 8.453932776e-10 | S100: -0.002362722044 | T100: -0.004913078574 | U100: 0.6964228423
F101: 0.48 | G101: 0.7627042135 | H101: 0.03386375125 | I101: -0.08340843179 | J101: 7.796154904e-10 | K101: -0.02907236251 | L101: -0.0110514968 | M101: 0.01411183405 | N101: -7.551224534e-10 | O101: 0.007965998178 | P101: 0.006352541597 | Q101: -0.004866410462 | R101: 7.153267139e-10 | S101: -0.003095499948 | T101: -0.004248668915 | U101: 0.6892554689
F102: 0.485 | G102: 0.7633638403 | H102: 0.02542709566 | I102: -0.08406534891 | J102: 5.874197736e-10 | K102: -0.02972388084 | L102: -0.008375613367 | M102: 0.01475530521 | N102: -5.770149643e-10 | O102: 0.008598835076 | P102: 0.004906542199 | Q102: -0.005486105878 | R102: 5.599193439e-10 | S102: -0.003699646271 | T102: -0.003379615841 | U102: 0.6823214079
F103: 0.49 | G103: 0.7638351186 | H103: 0.01696534659 | I103: -0.08453561993 | J103: 3.929057792e-10 | K103: -0.03019214155 | L103: -0.005625387391 | M103: 0.01522056048 | N103: -3.898076043e-10 | O103: 0.009060102125 | P103: 0.003339727445 | Q103: -0.005942417661 | R103: 3.846765515e-10 | S103: -0.004150056087 | T103: -0.002347778576 | U103: 0.6756274544
F104: 0.495 | G104: 0.7641179319 | H104: 0.008486854778 | I104: -0.08481820073 | J104: 1.968411652e-10 | K104: -0.03047425767 | L104: -0.002825230077 | M104: 0.01550198045 | N104: -1.964527453e-10 | O104: 0.009340595809 | P104: 0.001690677515 | Q104: -0.006221756233 | R104: 1.958064e-10 | S104: -0.004428012895 | T104: -0.001202857087 | U104: 0.669167726
F105: 0.5 | G105: 0.7642122106 | H105: -1.253956516e-08 | I105: -0.08491246391 | J105: -2.909819052e-16 | K105: -0.03056848984 | L105: 4.179855039e-09 | M105: 0.01559616612 | N105: 2.909819052e-16 | O105: 0.009434719525 | P105: -2.507913036e-09 | Q105: -0.006315802514 | R105: -2.909819033e-16 | S105: -0.004521966373 | T105: 1.791366448e-09 | U105: 0.6629243646
F106: 0.505 | G106: 0.7641179314 | H106: -0.008486879845 | I106: -0.08481820017 | J106: -1.96841746e-10 | K106: -0.03047425711 | L106: 0.0028252384 | M106: 0.01550197989 | N106: 1.964533226e-10 | O106: 0.009340595254 | P106: -0.001690682469 | Q106: -0.006221755679 | R106: -1.958069717e-10 | S106: -0.004428012342 | T106: 0.001202860583 | U106: 0.6568688177
F107: 0.51 | G107: 0.7638351175 | H107: -0.01696537162 | I107: -0.08453561882 | J107: -3.929063566e-10 | K107: -0.03019214044 | L107: 0.005625395603 | M107: 0.01522055937 | N107: 3.89808168e-10 | O107: 0.009060101026 | P107: -0.003339732215 | Q107: -0.005942416569 | R107: -3.846770926e-10 | S107: -0.004150055003 | T107: 0.002347781817 | U107: 0.6509636202
F108: 0.515 | G108: 0.7633638387 | H108: -0.02542712063 | I108: -0.08406534724 | J108: -5.874203452e-10 | K108: -0.02972387918 | L108: 0.008375621395 | M108: 0.01475530357 | N108: 5.770155054e-10 | O108: 0.008598833454 | P108: -0.004906546668 | Q108: -0.00548610428 | R108: -5.599198353e-10 | S108: -0.003699644702 | T108: 0.003379618672 | U108: 0.6451645725
F109: 0.52 | G109: 0.7627042112 | H109: -0.03386377614 | I109: -0.08340842957 | J109: -7.796160541e-10 | K109: -0.02907236032 | L109: 0.01105150458 | M109: 0.01411183189 | N109: 7.551229634e-10 | O109: 0.007965996067 | P109: -0.006352545655 | Q109: -0.004866408407 | R109: -7.153271381e-10 | S109: -0.00309549796 | T109: 0.004248671199 | U109: 0.6394231962
F110: 0.525 | G110: 0.761856398 | H110: -0.04226701218 | I110: -0.08256632432 | J110: -9.687349744e-10 | K110: -0.02824160068 | L110: 0.01362929382 | M110: 0.01329791625 | N110: 9.213216808e-10 | O110: 0.007174215667 | P110: -0.00764212388 | Q110: -0.004101784329 | R110: -8.453936197e-10 | S110: -0.002362719718 | T110: 0.004913080201 | U110: 0.6336893379
F111: 0.53 | G111: 0.760820608 | H111: -0.05062853579 | I111: -0.08154090118 | J111: -1.15403074e-09 | K111: -0.02723672218 | L111: 0.01608610848 | M111: 0.01232338718 | N111: 1.072990605e-09 | O111: 0.006239290401 | P111: -0.008743527646 | Q111: -0.003215003583 | R111: -9.455116099e-10 | S111: -0.001531760124 | T111: 0.005340843435 | U111: 0.627913786
F112: 0.535 | G112: 0.759597097 | H112: -0.05894009514 | I112: -0.08033443683 | J112: -1.334772074e-09 | K112: -0.02606392022 | L112: 0.0184001417 | M112: 0.01120001515 | N112: 1.207737825e-09 | O112: 0.005179874539 | P112: -0.009629636738 | Q112: -0.002232475693 | R112: -1.012134379e-09 | S112: -0.0006371491877 | T112: 0.005511357054 | U112: 0.6220507704
F113: 0.54 | G113: 0.7581861667 | H113: -0.06719348774 | I113: -0.07894960995 | J113: -1.510245672e-09 | K113: -0.02473042552 | L113: 0.02055085395 | M113: 0.009941368322 | N113: 1.323438298e-09 | O113: 0.00401710627 | P113: -0.01027863221 | Q113: -0.001183461667 | R113: -1.042901782e-09 | S113: 0.0002839380882 | T113: 0.005416408017 | U113: 0.616060223
F114: 0.545 | G114: 0.7565881653 | H114: -0.07538056847 | I114: -0.07738949518 | J114: -1.67975902e-09 | K114: -0.02324445953 | L114: 0.02251915537 | M114: 0.008562648763 | N114: 1.418267357e-09 | O114: 0.002774185945 | P114: -0.01067453363 | Q114: -9.920255715e-05 | R114: -1.036723869e-09 | S114: 0.001193226493 | T114: 0.005060569685 | U114: 0.6099096909
F115: 0.55 | G115: 0.7548034871 | H115: -0.08349325768 | I115: -0.07565755637 | J115: -1.842643126e-09 | K115: -0.0216151837 | L115: 0.02428757516 | M115: 0.007080508766 | N115: 1.490729493e-09 | O115: 0.001475913161 | P115: -0.0108075926 | Q115: 0.0009880109391 | R115: -9.93819494e-10 | S115: 0.00205293111 | T115: 0.004460981538 | U115: 0.6035758161
F116: 0.555 | G116: 0.7528325725 | H116: -0.09152354912 | I116: -0.07375763887 | J116: -1.998255162e-09 | K116: -0.01985264308 | L116: 0.02584041671 | M116: 0.005512849751 | N116: 1.539681933e-09 | O116: 0.0001481919465 | P116: -0.01067453277 | Q116: 0.002045800137 | R116: -9.157085674e-10 | S116: 0.002827327449 | T116: 0.003646523623 | U116: 0.5970453169
F117: 0.56 | G117: 0.7506759076 | H117: -0.09946351787 | I117: -0.07169396095 | J117: -2.145980997e-09 | K117: -0.0179677043 | L117: 0.02716389688 | M117: 0.003878606043 | N117: 1.564352669e-09 | O117: -0.001182486095 | P117: -0.0102786305 | Q117: 0.003042662648 | R117: -8.051582073e-10 | S117: 0.003484235948 | T117: 0.002656425509 | U117: 0.5903154335
F118: 0.565 | G118: 0.7483340247 | H118: -0.1073053281 | I118: -0.06947110451 | J118: -2.285237625e-09 | K118: -0.01597198865 | L118: 0.02824626837 | M118: 0.002197516185 | N118: 1.564352628e-09 | O118: -0.002489570364 | P118: -0.009629634233 | Q118: 0.003948910563 | R118: -6.660847155e-10 | S118: 0.003996359182 | T118: 0.001538376737 | U118: 0.5833938285
F119: 0.57 | G119: 0.7458075016 | H119: -0.115041241 | I119: -0.06709400484 | J119: -2.415475464e-09 | K119: -0.01387780038 | L119: 0.02907792398 | M119: 0.0004898845298 | N119: 1.539681811e-09 | O119: -0.00374698102 | P119: -0.008743524403 | Q119: 0.004737554595 | R119: -5.034148398e-10 | S119: 0.004342416189 | T119: 0.0003462297753 | U119: 0.5762979577
F120: 0.575 | G120: 0.7430969616 | H120: -0.122663622 | I120: -0.06456793969 | J120: -2.536180525e-09 | K120: -0.01169805085 | L120: 0.02965148187 | M120: -0.001223663995 | N120: 1.490729291e-09 | O120: -0.004929629343 | P120: -0.007642119978 | Q120: 0.005385107862 | R120: -3.22911242e-10 | S120: 0.004508026783 | T120: -0.0008625938547 | U120: 0.5690539571
F121: 0.58 | G121: 0.7402030736 | H121: -0.1301649489 | I121: -0.06189851757 | J121: -2.64687644e-09 | K121: -0.009446178941 | L121: 0.0299618511 | M121: -0.002922432996 | N121: 1.418267079e-09 | O121: -0.006013918323 | P121: -0.006352541191 | Q121: 0.005872285356 | R121: -1.309683521e-10 | S121: 0.004486309119 | T121: -0.002029869377 | U121: 0.5616951106
F122: 0.585 | G122: 0.7371265516 | H122: -0.1375378186 | I122: -0.05909166526 | J122: -2.747126342e-09 | K122: -0.007136068199 | L122: 0.03000627681 | M122: -0.00458590459 | N122: 1.323437947e-09 | O122: -0.006978213485 | P122: -0.004906541752 | Q122: 0.006184578272 | R122: 6.561415714e-11 | S122: 0.004278165662 | T122: -0.003099373242 | U122: 0.5542599858
F123: 0.59 | G123: 0.7338681545 | H123: -0.1447749551 | I123: -0.05615361466 | J123: -2.836534591e-09 | K123: -0.004781961222 | L123: 0.02978436468 | M123: -0.006193987219 | N123: 1.207737408e-09 | O123: -0.00780327455 | P123: -0.003339726968 | Q123: 0.006312686107 | R123: 2.598722521e-10 | S123: 0.003892245682 | T123: -0.004019591215 | U123: 0.5467903387
F124: 0.595 | G124: 0.7304286865 | H124: -0.1518692163 | I124: -0.053090889 | J124: -2.914748334e-09 | K124: -0.002398371863 | L124: 0.02929808441 | M124: -0.007727258315 | N124: 1.072990127e-09 | O124: -0.008472639335 | P124: -0.001690677019 | Q124: 0.006252793636 | R124: 4.449242426e-10 | S124: 0.003344585847 | T124: -0.004746199638 | U124: 0.5393288976
F125: 0.6 | G125: 0.7268089962 | H125: -0.1588136008 | I125: -0.04991028828 | J125: -2.981458896e-09 | K125: 4.25606978e-09 | L125: 0.02855175226 | M125: -0.009167198895 | N125: 9.213211511e-10 | O125: -0.008972952215 | P125: 3.009495628e-09 | Q125: 0.006006684539 | R125: 6.142145696e-10 | S125: 0.002657943821 | T125: -0.005244200343 | U125: 0.5319171421
F126: 0.605 | G126: 0.7230099766 | H126: -0.1656012555 | I126: -0.04661887424 | J126: -3.036403002e-09 | K126: 0.002398380349 | L126: 0.02755199272 | M126: -0.01049641723 | N126: 7.551223897e-10 | O126: -0.009294230604 | P126: 0.001690682964 | Q126: 0.005581688276 | R126: 7.617460386e-10 | S126: 0.001860852587 | T126: -0.00548960639 | U126: 0.524593188
F127: 0.61 | G127: 0.719032565 | H127: -0.1722254817 | I127: -0.04322395463 | J127: -3.079363812e-09 | K127: 0.004781969629 | L127: 0.02630767975 | M127: -0.01169885889 | N127: 5.770148967e-10 | O127: -0.009430064136 | P127: 0.003339732692 | Q127: 0.004990461808 | R127: 8.822922737e-10 | S127: 0.0009864347779 | T127: -0.005470597434 | U127: 0.5173898853
F128: 0.615 | G128: 0.714877743 | H128: -0.1786797422 | I128: -0.03973306704 | J128: -3.11017178e-09 | K128: 0.007136076476 | L128: 0.02482985793 | M128: -0.01276000069 | N128: 3.898075338e-10 | O128: -0.009377742568 | P128: 0.004906547115 | Q128: 0.004250612658 | R128: 9.715828641e-10 | S128: 7.102628303e-05 | T128: -0.005188089069 | U128: 0.5103332202
F129: 0.62 | G129: 0.7105465356 | H129: -0.1849576673 | I129: -0.03615396209 | J129: -3.12870532e-09 | K129: 0.009446187037 | L129: 0.02313164454 | M129: -0.01366702606 | N129: 1.964526731e-10 | O129: -0.009138309855 | P129: 0.00635254606 | Q129: 0.003384174531 | R129: 1.026454646e-09 | S129: -0.000847333665 | T129: -0.004655688729 | U129: 0.5034410981
F130: 0.625 | G130: 0.7060400114 | H130: -0.1910530615 | I130: -0.03249458631 | J130: -3.134891289e-09 | K130: 0.01169805871 | L130: 0.02122811302 | M130: -0.01440897987 | N130: -3.637273822e-16 | O130: -0.008716543322 | P130: 0.007642124234 | Q130: 0.002416951122 | R130: 1.04496376e-09 | S130: -0.001730483188 | T130: -0.003899040262 | U130: 0.4967225619
F131: 0.63 | G131: 0.7013592824 | H131: -0.1969599094 | I131: -0.02876306442 | J131: -3.128705274e-09 | K131: 0.01387780796 | L131: 0.01913615927 | M131: -0.01497690073 | N131: -1.964533948e-10 | O131: -0.008120858345 | P131: 0.008743527941 | Q131: 0.00137774765 | R131: 1.02645451e-09 | S131: -0.002541723555 | T131: -0.00295458876 | U131: 0.4901774777
F132: 0.635 | G132: 0.6965055035 | H132: -0.2026723817 | I132: -0.02496768133 | J132: -3.110171689e-09 | K132: 0.01597199591 | L132: 0.0168743516 | M132: -0.01536392925 | N132: -3.898082384e-10 | O132: -0.007363140438 | P132: 0.009629636966 | Q132: 0.0002975129947 | R132: 9.715825963e-10 | S132: -0.003247344176 | T132: -0.001867825125 | U132: 0.4837966965
F133: 0.64 | G133: =β01*SIN(1*π*F133)*COS(1*π*c_*t) -> 0.6914798723 | H133: =β02*SIN(2*π*F133)*COS(2*π*c_*t) -> -0.2081848408 | I133: =β03*SIN(3*π*F133)*COS(3*π*c_*t) -> -0.02111686374 | J133: =β04*SIN(4*π*F133)*COS(4*π*c_*t) -> -3.079363676e-09 | K133: =β05*SIN(5*π*F133)*COS(5*π*c_*t) -> 0.01796771119 | L133: =β06*SIN(6*π*F133)*COS(6*π*c_*t) -> 0.01446276599 | M133: =β07*SIN(7*π*F133)*COS(7*π*c_*t) -> -0.01556539085 | N133: =β08*SIN(8*π*F133)*COS(8*π*c_*t) -> -5.77015573e-10 | O133: =β09*SIN(9*π*F133)*COS(9*π*c_*t) -> -0.006458508108 | P133: =β10*SIN(10*π*F133)*COS(10*π*c_*t) -> 0.01027863236 | Q133: =β11*SIN(11*π*F133)*COS(11*π*c_*t) -> -0.0007915819989 | R133: =β12*SIN(12*π*F133)*COS(12*π*c_*t) -> 8.822918839e-10 | S133: =β13*SIN(13*π*F133)*COS(13*π*c_*t) -> -0.003818023422 | T133: =β14*SIN(14*π*F133)*COS(14*π*c_*t) -> -0.0006910949333 | U133: 0.4775626752
F134: 0.645 | G134: 0.6862836288 | H134: -0.2134918466 | I134: -0.01721916143 | J134: -3.036402821e-09 | K134: 0.01985264955 | L134: 0.01192280784 | M134: -0.01557885227 | N134: -7.551230271e-10 | O134: -0.005425011199 | P134: 0.01067453371 | Q134: -0.001857102613 | R134: 7.617455406e-10 | S134: -0.004230047073 | T134: 0.0005189228674 | U134: =SUM(G134:T134) -> 0.4714505186
F135: 0.65 | G135: 0.6809180551 | H135: -0.2185881617 | I135: -0.01328322828 | J135: -2.981458671e-09 | K135: 0.02161518972 | L135: 0.009277022006 | M135: -0.01540415092 | N135: -9.213217397e-10 | O135: -0.00428327075 | P135: 0.0108075926 | Q135: -0.002867316207 | R135: 6.142139811e-10 | S135: -0.004466293741 | T135: 0.001703945981 | U135: 0.4654293805
F136: 0.655 | G136: 0.675384475 | H136: -0.2234687566 | I136: -0.009317803033 | J136: -2.914748066e-09 | K136: 0.02324446505 | L136: 0.006548892662 | M136: -0.01504339685 | N136: -1.072990658e-09 | O136: -0.003056067548 | P136: 0.01067453269 | Q136: -0.003792137258 | R136: 4.449235844e-10 | S136: -0.004516946341 | T136: 0.00280689602 | U136: 0.4594641502
F137: 0.66 | G137: 0.6696842539 | H137: -0.2281288149 | I137: -0.005331689936 | J137: -2.836534281e-09 | K137: 0.02473043053 | L137: 0.003762634881 | M137: -0.01450094729 | N137: -1.207737871e-09 | O137: -0.001767887593 | P137: 0.01027863035 | Q137: -0.004604023347 | R137: 2.598715475e-10 | S137: -0.004379900036 | T137: 0.003774647764 | U137: 0.4535173305
F138: 0.665 | G138: 0.6638187982 | H138: -0.2325637376 | I138: -0.001333739153 | J138: -2.747125991e-09 | K138: 0.02606392467 | L138: 0.0009429796865 | M138: -0.013783354 | N138: -1.323438337e-09 | O138: -0.0004444335326 | P138: 0.009629634005 | Q138: -0.005278795412 | R138: 6.561343112e-11 | S138: -0.004060849701 | T138: 0.004560588021 | U138: 0.4475510112
F139: 0.67 | G139: 0.6577895551 | H139: -0.2367691479 | I139: 0.002667172864 | J139: -2.64687605e-09 | K139: 0.02723672604 | L139: -0.001885045463 | M139: -0.01289928412 | N139: -1.418267388e-09 | O139: 0.0008878881698 | P139: 0.008743524108 | Q139: -0.00579635783 | R139: -1.309690738e-10 | S139: -0.003573053275 | T139: 0.005126860818 | U139: 0.4415288343
F140: 0.675 | G140: 0.6515980124 | H140: -0.2407408957 | I140: 0.00666216309 | J140: -2.536180097e-09 | K140: 0.02824160394 | L140: -0.004696338815 | M140: -0.01185941553 | N140: -1.490729516e-09 | O140: 0.002202494119 | P140: 0.007642119624 | Q140: -0.006141296896 | R140: -3.229119338e-10 | S140: -0.002936780835 | T140: 0.005446190788 | U140: 0.4354178518
F141: 0.68 | G141: 0.6452456975 | H141: -0.2444750612 | I141: 0.01064236165 | J141: -2.415475001e-09 | K141: 0.02907236295 | L141: -0.007465947131 | M141: -0.01067630787 | N141: -1.539681947e-09 | O141: 0.003473154397 | P141: 0.006352540785 | Q141: -0.006303339858 | R141: -5.034154773e-10 | S141: -0.002178472289 | T141: 0.005503196932 | U141: 0.4291901814
F142: 0.685 | G142: 0.6387341779 | H142: -0.2479679594 | I142: 0.0145989315 | J142: -2.285237127e-09 | K142: 0.02972388117 | L142: -0.01016928717 | M142: -0.009364250798 | N142: -1.564352674e-09 | O142: 0.004674515918 | P142: 0.004906541305 | Q142: -0.006277660859 | R142: -6.66085276e-10 | S142: -0.001329638677 | T142: 0.005295133465 | U142: 0.4228243799
F143: 0.69 | G143: 0.6320650603 | H143: -0.2512161431 | I143: 0.01852308807 | J143: -2.145980467e-09 | K143: 0.03019214177 | L143: -0.01278236389 | M143: -0.007939091471 | N143: -1.564352623e-09 | O143: 0.005782608295 | P143: 0.003339726491 | Q143: -0.006065024654 | R143: -8.05158671e-10 | S143: -0.0004255527541 | T143: 0.004832022071 | U143: 0.4163064665
F144: 0.695 | G144: 0.62523999 | H144: -0.2542164069 | I144: 0.02240611876 | J144: -1.998254601e-09 | K144: 0.03047425778 | L144: -0.01528198344 | M144: -0.006418043087 | N144: -1.539681797e-09 | O144: 0.006775322109 | P144: 0.001690676524 | Q144: -0.005671763835 | R144: -9.157089179e-10 | S144: 0.0004962167494 | T144: 0.004136169194 | U144: 0.4096305494
F145: 0.7 | G145: 0.6182606511 | H145: -0.2569657897 | I145: 0.02623940225 | J145: -1.842642538e-09 | K145: 0.03056848984 | L145: -0.01764595902 | M145: -0.004819477004 | N145: -1.490729268e-09 | O145: 0.007632850055 | P145: -3.511078239e-09 | Q145: -0.00510959024 | R145: -9.938197188e-10 | S145: 0.001397366274 | T145: 0.003241091616 | U145: 0.4027990274
F146: 0.705 | G146: 0.6111287656 | H146: -0.2594615783 | I146: 0.03001442771 | J146: -1.679758406e-09 | K146: 0.030474257 | L146: -0.01985330782 | M146: -0.003162700847 | N146: -1.418267048e-09 | O146: 0.008338082146 | P146: -0.00169068346 | Q146: -0.004395246158 | R146: -1.03672396e-09 | S146: 0.002240449109 | T146: 0.002189902072 | U146: 0.395822363
F147: 0.71 | G147: 0.6038460933 | H147: -0.2617013096 | I147: 0.03372281363 | J147: -1.510245034e-09 | K147: 0.03019214022 | L147: -0.02188443724 | M147: -0.001467725306 | N147: -1.323437908e-09 | O147: 0.00887694711 | P147: -0.003339733169 | Q147: -0.003550005718 | R147: -1.042901736e-09 | S147: 0.00299043147 | T147: 0.001033232659 | U147: 0.3887184435
F148: 0.715 | G148: 0.596414431 | H148: -0.2636827733 | I148: 0.03735632647 | J148: -1.334771416e-09 | K148: 0.02972387885 | L148: -0.02372131885 | M148: 0.0002449775523 | N148: -1.207737361e-09 | O148: 0.009238693142 | P148: -0.004906547562 | Q148: -0.00259904132 | R148: -1.012134198e-09 | S148: 0.003616148306 | T148: -0.0001732039315 | U148: 0.3815115667
F149: 0.72 | G149: 0.5888356123 | H149: -0.265404014 | I149: 0.04090689892 | J149: -1.154030064e-09 | K149: 0.02907235988 | L149: -0.02534764834 | M149: 0.00195472155 | N149: -1.072990074e-09 | O149: 0.00941610244 | P149: -0.006352546466 | Q149: -0.001570673966 | R149: -9.455113002e-10 | S149: 0.004091598341 | T149: -0.001371297899 | U149: 0.3742311096
F150: 0.725 | G150: 0.5811115072 | H150: -0.2668633329 | I150: 0.04436664783 | J150: -9.687342826e-10 | K150: 0.02824160014 | L150: -0.02674899031 | M150: 0.003640856246 | N150: -9.213210923e-10 | O150: 0.00940563521 | P150: -0.007642124589 | Q150: -0.0004955298237 | R150: -8.453931921e-10 | S150: 0.004397024544 | T150: -0.002503341277 | U150: 0.3669099495
F151: 0.73 | G151: 0.5732440216 | H151: -0.26805929 | I151: 0.04772789167 | J151: -7.796153495e-10 | K151: 0.02723672153 | L151: -0.02791290633 | M151: 0.005283016354 | N151: -7.551223259e-10 | O151: 0.009207500301 | P151: -0.008743528236 | Q151: 0.0005943718652 | R151: -7.153266078e-10 | S151: 0.004519735118 | T151: -0.003514807524 | U151: 0.3595827242
F152: 0.735 | G152: 0.5652350966 | H152: -0.2689907048 | I152: 0.05098316766 | J152: -5.874196307e-10 | K152: 0.02606391948 | L152: -0.02882906542 | M152: 0.006861367718 | N152: -5.77014829e-10 | O152: 0.008825651039 | P152: -0.009629637193 | Q152: 0.001666572358 | R152: -5.599192211e-10 | S152: 0.004454630902 | T152: -0.004356977872 | U152: 0.3522840187
F153: 0.74 | G153: 0.5570867083 | H153: -0.2696566583 | I153: 0.05412524826 | J153: -3.929056349e-10 | K153: 0.02473042469 | L153: -0.02948933567 | M153: 0.00835684687 | N153: -3.898074634e-10 | O153: 0.00826770634 | P153: -0.01027863252 | Q153: 0.002689140079 | R153: -3.846764162e-10 | S153: 0.00420441726 | T153: -0.004989287945 | U153: 0.3450465761
F154: 0.745 | G154: 0.5488008671 | H154: -0.2700564933 | I154: 0.05714715728 | J154: -1.9684102e-10 | K154: 0.0232444586 | L154: -0.02988785649 | M154: 0.009751391277 | N154: -1.964526009e-10 | O154: 0.007544798699 | P154: -0.01067453379 | Q154: 0.003631621582 | R154: -1.958062571e-10 | S154: 0.003779491666 | T154: -0.005381281591 | U154: 0.3378996205
F155: 0.75 | G155: 0.5403796176 | H155: -0.2701898151 | I155: 0.06004218531 | J155: 4.364728564e-16 | K155: 0.0216151827 | L155: -0.03002109056 | M155: 0.01102815751 | N155: 4.364728564e-16 | O155: 0.006671352065 | P155: -0.0108075926 | Q155: 0.004465948496 | R155: 4.364728569e-16 | S155: 0.00319751164 | T155: -0.005514077858 | U155: 0.3308673792
F156: 0.755 | G156: 0.5318250375 | H156: -0.2700564921 | I156: 0.06280390466 | J156: 1.968418912e-10 | K156: 0.019852642 | L156: -0.02988785531 | M156: 0.01217172467 | N156: 1.96453467e-10 | O156: 0.005664794044 | P156: -0.01067453261 | Q156: 0.005167273442 | R156: 1.958071146e-10 | S156: 0.002482660999 | T156: -0.005381280419 | U156: 0.3239678774
F157: 0.76 | G157: 0.5231392374 | H157: -0.269656656 | I157: 0.06542618364 | J157: 3.929065009e-10 | K157: 0.01796770315 | L157: -0.02948933332 | M157: 0.01316828065 | N157: 3.898083089e-10 | O157: 0.004545208171 | P157: -0.01027863019 | Q157: 0.005714710016 | R157: 3.846772278e-10 | S157: 0.00166464492 | T157: -0.004989285656 | U157: 0.317212064
F158: 0.765 | G158: 0.5143243607 | H158: -0.2689907013 | I158: 0.06790320013 | J158: 5.874204881e-10 | K158: 0.01597198744 | L158: -0.02882906192 | M158: 0.01400578895 | N158: 5.770156407e-10 | O158: 0.00333493319 | P158: -0.009629633778 | Q158: 0.006091954819 | R158: 5.599199581e-10 | S158: 0.000777455554 | T158: -0.004356974579 | U158: 0.3106033109
F159: 0.77 | G159: 0.505382582 | H159: -0.2680592852 | I159: 0.07022945453 | J159: 7.79616195e-10 | K159: 0.01387779911 | L159: -0.02791290172 | M159: 0.01467413409 | N159: 7.551230909e-10 | O159: 0.002058117338 | P159: -0.008743523814 | Q159: 0.006287772993 | R159: 7.153272442e-10 | S159: -0.000142040496 | T159: -0.003514803383 | U159: 0.3041373077
F160: 0.775 | G160: 0.4963161078 | H160: -0.266863327 | I160: 0.07239978197 | J160: 9.687351128e-10 | K160: 0.01169804954 | L160: -0.02674898461 | M160: 0.01516524372 | N160: 9.213217985e-10 | O160: 0.0007402365177 | P160: -0.007642119269 | Q160: 0.006296332807 | R160: 8.453937052e-10 | S160: -0.001055634141 | T160: -0.002503336489 | U160: 0.2978023535
F161: 0.78 | G161: 0.487127175 | H161: -0.2654040069 | I161: 0.07440936378 | J161: 1.154030876e-09 | K161: 0.009446177592 | L161: -0.02534764162 | M161: 0.01547318618 | N161: 1.072990711e-09 | O161: -0.0005924140084 | P161: -0.006352540379 | Q161: 0.006117379339 | R161: 9.455116719e-10 | S161: -0.001925361564 | T161: -0.001371292694 | U161: 0.2915800278
F162: 0.785 | G162: 0.4778180508 | H162: -0.2636827651 | I162: 0.0762537382 | J162: 1.334772206e-09 | K162: 0.00713606682 | L162: -0.02372131116 | M162: 0.01559424212 | N162: 1.207737918e-09 | O162: -0.001913244284 | P162: -0.004906540858 | Q162: 0.005756242064 | R162: 1.012134415e-09 | S162: -0.002715081781 | T162: -0.0001731985601 | U162: 0.2854462018
F163: 0.79 | G163: 0.4683910322 | H163: -0.2617013003 | I163: 0.07792881024 | J163: 1.510245799e-09 | K163: 0.004781959821 | L163: -0.02188442866 | M163: 0.0155269494 | N163: 1.323438376e-09 | O163: -0.003195900199 | P163: -0.003339726014 | Q163: 0.005223676139 | R163: 1.042901791e-09 | S163: -0.003391978458 | T163: 0.001033237938 | U163: 0.2793723361
F164: 0.795 | G164: 0.4588484452 | H164: -0.2594615678 | I164: 0.07943086083 | J164: 1.679759143e-09 | K164: 0.002398370449 | L164: -0.01985329841 | M164: 0.0152721208 | N164: 1.418267419e-09 | O164: -0.004414789324 | P164: -0.001690676029 | Q164: 0.004535542093 | R164: 1.03672385e-09 | S164: -0.003927923573 | T164: 0.002189907004 | U164: 0.2733269953
F165: 0.8 | G165: 0.4491926441 | H165: -0.2569657781 | I165: 0.08075655504 | J165: 1.842643244e-09 | K165: -5.674759779e-09 | L165: -0.01764594888 | M165: 0.01483283416 | N165: 1.490729538e-09 | O165: -0.005545591547 | P165: 4.012660888e-09 | Q165: 0.003712333487 | R165: 9.938194491e-10 | S165: -0.00430064626 | T165: 0.003241095964 | U165: 0.2672775006
F166: 0.805 | G166: 0.4394260114 | H166: -0.2542163941 | I166: 0.08190294949 | J166: 1.998255274e-09 | K166: -0.002398381764 | L166: -0.01528197265 | M166: 0.01421439522 | N166: 1.539681961e-09 | O166: -0.006565744328 | P166: 0.001690683955 | Q166: 0.002778566584 | R166: 9.157084973e-10 | S166: -0.004494658258 | T166: 0.004136172748 | U166: 0.2611916328
F167: 0.81 | G167: 0.429550957 | H167: -0.2512161293 | I167: 0.08286749891 | J167: 2.145981103e-09 | K167: -0.004781971031 | L167: -0.01278235254 | M167: 0.01342427355 | N167: 1.564352678e-09 | O167: -0.00745489288 | P167: 0.003339733646 | Q167: 0.001762050221 | R167: 8.051581146e-10 | S167: -0.004501897518 | T167: 0.00483202466 | U167: 0.2550392992
F168: 0.815 | G168: 0.4195699173 | H168: -0.2479679445 | I168: 0.08364806176 | J168: 2.285237725e-09 | K168: -0.007136077855 | L168: -0.01016927537 | M168: 0.01247201229 | N168: 1.564352619e-09 | O168: -0.008195296301 | P168: 0.004906548009 | Q168: 0.000693057626 | R168: 6.660846034e-10 | S168: -0.004322063219 | T168: 0.005295134964 | U168: 0.2487940792
F169: 0.82 | G169: 0.4094853549 | H169: -0.2444750452 | I169: 0.08424290498 | J169: 2.415475557e-09 | K169: -0.009446188386 | L169: -0.007465934985 | M169: 0.01136911296 | N169: 1.539681783e-09 | O169: -0.008772181555 | P169: 0.006352546872 | Q169: -0.0003965751598 | R169: 5.034147123e-10 | S169: -0.003962628262 | T169: 0.00550319727 | U169: 0.2424345679
F170: 0.825 | G170: 0.3992997582 | H170: -0.2407408786 | I170: 0.08465070788 | J170: 2.536180611e-09 | K170: -0.01169806002 | L170: -0.00469632643 | M170: 0.01012889647 | N170: 1.490729246e-09 | O170: -0.009174038233 | P170: 0.007642124944 | Q170: -0.001474397403 | R170: 3.229111036e-10 | S170: -0.003438528744 | T170: 0.005446189948 | U170: 0.2359454524
F171: 0.83 | G171: 0.3890156403 | H171: -0.2367691298 | I171: 0.08487056504 | J171: 2.646876518e-09 | K171: -0.01387780923 | L171: -0.001885032948 | M171: 0.008766342254 | N171: 1.418267017e-09 | O171: -0.009392848214 | P171: 0.008743528531 | Q171: -0.002508310102 | R171: 1.309682077e-10 | S171: -0.002771543297 | T171: 0.005126858839 | U171: 0.2293182656
F172: 0.835 | G172: 0.3786355385 | H172: -0.2325637184 | I172: 0.08490198831 | J172: 2.747126412e-09 | K172: -0.01597199712 | L172: 0.0009429922198 | M172: 0.007297907375 | N172: 1.323437869e-09 | O172: -0.009424245652 | P172: 0.009629637421 | Q172: -0.003467521945 | R172: -6.561430234e-11 | S172: -0.001989388086 | T172: 0.004560585 | U172: 0.2225517816
F173: 0.84 | G173: 0.3681620142 | H173: -0.2281287948 | I173: 0.08474490793 | J173: 2.836534653e-09 | K173: -0.01796771234 | L173: 0.003762647322 | M173: 0.005741327718 | N173: 1.207737315e-09 | O173: -0.009267604084 | P173: 0.01027863267 | Q173: -0.004323466307 | R173: -2.59872393e-10 | S173: -0.001124565087 | T173: 0.003774643846 | U173: 0.2156520349
F174: 0.845 | G174: 0.3575976513 | H174: -0.2234687355 | I174: 0.08439967266 | J174: 2.914748387e-09 | K174: -0.01985265063 | L174: 0.006548904899 | M174: 0.004115403791 | N174: 1.072990021e-09 | O174: -0.008926048929 | P174: 0.01067453387 | Q174: -0.005050652013 | R174: -4.449243743e-10 | S174: -0.0002130114832 | T174: 0.002806891394 | U174: 0.2086319629
F175: 0.85 | G175: 0.3469450565 | H175: -0.2185881396 | I175: 0.083867049 | J175: 2.981458941e-09 | K175: -0.02161519072 | L175: 0.009277033931 | M175: 0.002439773649 | N175: 9.213210334e-10 | O175: -0.00840639513 | P175: 0.0108075926 | Q175: -0.00562742249 | R175: -6.142146873e-10 | S175: 0.0007073936809 | T175: 0.00170394087 | U175: 0.2015106957
F176: 0.855 | G176: 0.3362068583 | H176: -0.2134918235 | I176: 0.08314821951 | J176: 3.036403038e-09 | K176: -0.02324446598 | L176: 0.01192281935 | M176: 0.0007346757031 | N176: 7.551222622e-10 | O176: -0.007719011176 | P176: 0.01067453253 | Q176: -0.006036600737 | R176: -7.617461382e-10 | S176: 0.001598403539 | T176: 0.0005189175171 | U176: 0.1943125281
F177: 0.86 | G177: 0.325385706 | H177: -0.2081848168 | I177: 0.08224478018 | J177: 3.079363839e-09 | K177: -0.02473043136 | L177: 0.01446277698 | M177: -0.0009792957219 | N177: 5.770147614e-10 | O177: -0.006877612223 | P177: 0.01027863004 | Q177: -0.006266000872 | R177: -8.822923516e-10 | S177: 0.00242299273 | T177: -0.000691100265 | U177: 0.1870656315
F178: 0.865 | G178: 0.3144842697 | H178: -0.2026723568 | I178: 0.08115873686 | J178: 3.110171798e-09 | K178: -0.02606392541 | L178: 0.01687436197 | M178: -0.002681439126 | N178: 3.898073929e-10 | O178: -0.005898986438 | P178: 0.00962963355 | Q178: -0.006308791052 | R178: -9.715829177e-10 | S178: 0.003146895959 | T178: -0.001867830182 | U178: 0.1798005716
F179: 0.87 | G179: 0.3035052391 | H179: -0.1969598837 | I179: 0.07989250085 | J179: 3.128705329e-09 | K179: -0.02723672669 | L179: 0.01913616893 | M179: -0.004351195868 | N179: 1.964525287e-10 | O179: -0.004802660033 | P179: 0.008743523519 | Q179: -0.006163696927 | R179: -1.026454673e-09 | S179: 0.003740031879 | T179: -0.002954593298 | U179: 0.1725487101
F180: 0.875 | G180: 0.2924513231 | H180: -0.1910530349 | I180: 0.0784488835 | J180: 3.134891289e-09 | K180: -0.02824160448 | L180: 0.02122812189 | M180: -0.005968398477 | N180: -5.092183334e-16 | O180: -0.003610507666 | P180: 0.007642118914 | Q180: -0.005835039595 | R180: -1.04496376e-09 | S180: 0.004177753092 | T180: -0.003899044062 | U180: 0.1653405734
F181: 0.88 | G181: 0.2813252492 | H181: -0.1849576399 | I181: 0.07683109 | J181: 3.128705265e-09 | K181: -0.02907236339 | L181: 0.02313165253 | M181: -0.007513514236 | N181: -1.964535392e-10 | O181: -0.002346315975 | P181: 0.006352539974 | Q181: -0.005332606914 | R181: -1.026454483e-09 | S181: 0.004441870366 | T181: -0.004655691609 | U181: 0.158204272
F182: 0.885 | G182: 0.2701297624 | H182: -0.1786797139 | I182: 0.07504271227 | J182: 3.11017167e-09 | K182: -0.0297238815 | L182: 0.02482986498 | M182: -0.008967881097 | N182: -3.898083793e-10 | O182: -0.001035308981 | P182: 0.004906540411 | Q182: -0.004671362009 | R182: -9.715825428e-10 | S182: 0.004521408471 | T182: -0.00518809089 | U182: 0.1511640519
F183: 0.89 | G183: 0.2588676252 | H183: -0.1722254527 | I183: 0.07308772094 | J183: 3.079363649e-09 | K183: -0.030192142 | L183: 0.02630768579 | M183: -0.01031393309 | N183: -5.770157083e-10 | O183: 0.0002963552076 | P183: 0.003339725537 | Q183: -0.003870997643 | R183: -8.822918059e-10 | S183: 0.004413062251 | T183: -0.005470598107 | U183: 0.144239053
F184: 0.895 | G184: 0.2475416162 | H184: -0.1656012257 | I184: 0.0709704566 | J184: 3.036402785e-09 | K184: -0.03047425789 | L184: 0.0275519977 | M184: -0.01153541247 | N184: -7.551231546e-10 | O184: 0.001622106314 | P184: 0.001690675533 | Q184: -0.002955349747 | R184: -7.61745441e-10 | S184: 0.004121333964 | T184: -0.005489605884 | U184: 0.1374423361
F185: 0.9 | G185: 0.23615453 | H185: -0.1588135704 | I185: 0.06869562008 | J185: 2.981458626e-09 | K185: -0.03056848984 | L185: 0.02855175613 | M185: -0.01261756612 | N185: -9.213218574e-10 | O185: 0.002915492044 | P185: -4.514243461e-09 | Q185: -0.00195168755 | R185: -6.142138634e-10 | S185: 0.0036583462 | T185: -0.005244198682 | U185: 0.1307802289
F186: 0.905 | G186: 0.2247091763 | H186: -0.1518691851 | I186: 0.0662682621 | J186: 2.914748012e-09 | K186: -0.03047425689 | L186: 0.02929808714 | M186: -0.01354732366 | N186: -1.072990764e-09 | O186: 0.004150705879 | P186: -0.001690684451 | Q186: -0.0008899014661 | R186: -4.449234528e-10 | S186: 0.003043338128 | T186: -0.004746196902 | U186: 0.1242520224
F187: 0.91 | G187: 0.2132083789 | H187: -0.1447749234 | I187: 0.06369377201 | J187: 2.836534219e-09 | K187: -0.03019214 | L187: 0.02978436625 | M187: -0.01431345543 | N187: -1.207737964e-09 | O187: 0.005303101986 | P187: -0.003339734123 | Q187: 0.0001983870838 | R187: -2.598714065e-10 | S187: 0.002301866027 | T187: -0.004019587536 | U187: 0.1178500332
F188: 0.915 | G188: 0.2016549755 | H188: -0.1375377862 | I188: 0.06097786581 | J188: 2.747125921e-09 | K188: -0.02972387852 | L188: 0.03000627721 | M188: -0.01490670799 | N188: -1.323438415e-09 | O188: 0.006349686969 | P188: -0.004906548456 | Q188: 0.001280767399 | R188: -6.561328591e-11 | S188: 0.001464741311 | T188: -0.003099368797 | U188: 0.1115600256
F189: 0.92 | G189: 0.1900518168 | H189: -0.1301649159 | I189: 0.0581265735 | J189: 2.646875972e-09 | K189: -0.02907235944 | L189: 0.02996185032 | M189: -0.01531991601 | N189: -1.41826745e-09 | O189: 0.007269578647 | P189: -0.006352547278 | Q189: 0.002325004733 | R189: 1.309692181e-10 | S189: 0.0005667501774 | T189: -0.00202986438 | U189: 0.1053619726
F190: 0.925 | G190: 0.1784017657 | H190: -0.1226635885 | I190: 0.05514622565 | J190: 2.536180012e-09 | K190: -0.0282415996 | L190: 0.02965147991 | M190: -0.01554808871 | N190: -1.490729561e-09 | O190: 0.008044422711 | P190: -0.007642125298 | Q190: 0.003300000292 | R190: 3.229120722e-10 | S190: -0.0003547919084 | T190: -0.0008625885467 | U190: 0.09923111305
F191: 0.93 | G191: 0.1667076965 | H191: -0.1150412069 | I191: 0.05204343938 | J191: 2.415474908e-09 | K191: -0.02723672089 | L191: 0.02907792086 | M191: -0.0155884702 | N191: -1.539681974e-09 | O191: 0.008658758942 | P191: -0.008743528826 | Q191: 0.004176717391 | R191: 5.034156048e-10 | S191: -0.001261590836 | T191: 0.0003462351388 | U191: 0.09313925195
F192: 0.935 | G192: 0.1549724948 | H192: -0.1073052936 | I192: 0.04882510367 | J192: 2.285237028e-09 | K192: -0.02606391874 | L192: 0.02824626413 | M192: -0.01544057276 | N192: -1.564352683e-09 | O192: 0.009100329682 | P192: -0.009629637649 | Q192: 0.004929046214 | R192: 6.660853881e-10 | S192: -0.002115965139 | T192: 0.001538381897 | U192: 0.08705623388
F193: 0.94 | G193: 0.1431990559 | H193: -0.09946348289 | I193: 0.04549836401 | J193: 2.145980361e-09 | K193: -0.02473042386 | L193: 0.02716389154 | M193: -0.01510618269 | N193: -1.564352614e-09 | O193: 0.009360324408 | P193: -0.01027863283 | Q193: 0.005534581393 | R193: 8.051587638e-10 | S193: -0.002882411823 | T193: 0.002656430219 | U193: 0.08095151476
F194: 0.945 | G194: 0.1313902848 | H194: -0.09152351373 | I194: 0.0420706066 | J194: 1.998254489e-09 | K194: -0.02324445768 | L194: 0.02584041032 | M194: -0.0145893388 | N194: -1.53968177e-09 | O194: 0.009433555529 | P194: -0.01067453394 | Q194: 0.005975289275 | R194: 9.15708988e-10 | S194: -0.00352908167 | T194: 0.003646527654 | U194: 0.0747957497
F195: 0.95 | G195: 0.1195490951 | H195: -0.0834932219 | I195: 0.03854944192 | J195: 1.84264242e-09 | K195: -0.02161518169 | L195: 0.02428756779 | M195: -0.01389628358 | N195: -1.490729223e-09 | O195: 0.009318561886 | P195: -0.0108075926 | Q195: 0.006238044984 | R195: 9.938197638e-10 | S195: -0.004029102717 | T195: 0.004460984696 | U195: 0.06856231519
F196: 0.955 | G196: 0.1076784084 | H196: -0.07538053235 | I196: 0.03494268783 | J196: 1.679758283e-09 | K196: -0.01985264092 | L196: 0.02251914707 | M196: -0.01303538779 | N196: -1.418266986e-09 | O196: 0.009017637912 | P196: -0.01067453245 | Q196: 0.006315023301 | R196: 1.036723978e-09 | S196: -0.004361696899 | T196: 0.00506057182 | U196: 0.06222868723
F197: 0.96 | G197: =β01*SIN(1*π*F197)*COS(1*π*c_*t) -> 0.09578115371 | H197: =β02*SIN(2*π*F197)*COS(2*π*c_*t) -> -0.0671934513 | I197: =β03*SIN(3*π*F197)*COS(3*π*c_*t) -> 0.03125835224 | J197: =β04*SIN(4*π*F197)*COS(4*π*c_*t) -> 1.510244907e-09 | K197: =β05*SIN(5*π*F197)*COS(5*π*c_*t) -> -0.01796770201 | L197: =β06*SIN(6*π*F197)*COS(6*π*c_*t) -> 0.02055084481 | M197: =β07*SIN(7*π*F197)*COS(7*π*c_*t) -> -0.01201704943 | N197: =β08*SIN(8*π*F197)*COS(8*π*c_*t) -> -1.32343783e-09 | O197: =β09*SIN(9*π*F197)*COS(9*π*c_*t) -> 0.008536787848 | P197: =β10*SIN(10*π*F197)*COS(10*π*c_*t) -> -0.01027862988 | Q197: =β11*SIN(11*π*F197)*COS(11*π*c_*t) -> 0.006203931708 | R197: =β12*SIN(12*π*F197)*COS(12*π*c_*t) -> 1.042901727e-09 | S197: =β13*SIN(13*π*F197)*COS(13*π*c_*t) -> -0.00451304347 | T197: =β14*SIN(14*π*F197)*COS(14*π*c_*t) -> 0.005416409024 | U197: 0.05577760448
F198: 0.965 | G198: 0.08386026644 | H198: -0.05894005843 | I198: 0.02750461529 | J198: 1.334771284e-09 | K198: -0.01597198623 | L198: 0.01840013179 | M198: -0.01085356807 | N198: -1.207737268e-09 | O198: 0.007885605944 | P198: -0.009629633322 | Q198: 0.005908078662 | R198: 1.012134162e-09 | S198: -0.004476853318 | T198: 0.005511356885 | U198: =SUM(G198:T198) -> 0.04919795678
F199: 0.97 | G199: 0.07191868791 | H199: -0.05062849884 | I199: 0.02368981121 | J199: 1.154029929e-09 | K199: -0.01387779785 | L199: 0.01608609789 | M199: -0.009558996339 | N199: -1.072989968e-09 | O199: 0.007077085027 | P199: -0.008743523224 | Q199: 0.005436275066 | R199: 9.455112383e-10 | S199: -0.004254630302 | T199: 0.005340842099 | U199: 0.04248535367
F200: 0.975 | G200: 0.05995936452 | H200: -0.04226697503 | I200: 0.01982240982 | J200: 9.687341442e-10 | K200: -0.01169804823 | L200: 0.01362928264 | M200: -0.008148970199 | N200: -9.213209746e-10 | O200: 0.006127357261 | P200: -0.007642118559 | Q200: 0.004802571868 | R200: 8.453931066e-10 | S200: -0.003855608762 | T200: 0.004913077761 | U200: 0.03564234399
... 5 more rows

Sheet Φύλλο3
